Workbook

Sheet 4 Dice Game
A1: 4 Dice | K1: GAME
A2: outcome | B2: points | C2: number of ways | D2: probability | E2: weighted points | F2: possible points | H2: Current points | I2: Number of Dice | J2: 2 farkles already? | K2: Simulation
A3: farkle | B3: 0 | C3: 204 | D3: =C3/(6^4) -> 0.1574074074 | E3: =B3*D3 -> 0 | F3: =IF(J3="Y",(-$H$3-300)*D3,-$H$3*D3) -> -78.7037037 | H3: 500 | I3: 4 | J3: n | K3: Dice # | L3: 1 | M3: 2 | N3: 3 | O3: 4
A4: 4 of a kind (1) | B4: 2000 | C4: 1 | D4: =C4/(6^4) -> 0.0007716049383 | E4: =B4*D4 -> 1.543209877 | F4: =D4*($H$3+B4) -> 1.929012346 | K4: Dice Value | L4: 2 | M4: 2 | N4: 5 | O4: 5
A5: 4 of a kind (2) | B5: 400 | C5: 1 | D5: 0.0007716049383 | E5: 0.3086419753 | F5: 0.6944444444 | H5: Expected points | J5: 100 | K5: 131.25
A6: 4 of a kind (3) | B6: 600 | C6: 1 | D6: 0.0007716049383 | E6: 0.462962963 | F6: 0.8487654321 | H6: =IF(I3=4,$F$26,IF(I3=3,$F$45,IF(I3=2,$F$56,IF(I3=1,$F$64,0)))) -> 486.1111111 | J6: 150 | K6: 66.67
A7: 4 of a kind (4) | B7: 800 | C7: 1 | D7: 0.0007716049383 | E7: 0.6172839506 | F7: 1.00308642 | J7: 200
A8: 4 of a kind (5) | B8: 1000 | C8: 1 | D8: 0.0007716049383 | E8: 0.7716049383 | F8: 1.157407407 | H8: Game | I8: points
A9: 4 of a kind (6) | B9: 1200 | C9: 1 | D9: 0.0007716049383 | E9: 0.9259259259 | F9: 1.311728395 | H9: 1 | I9: 200 | K9: 3100
A10: 3 of a kind (1) | B10: 1010 | C10: 20 | D10: 0.01543209877 | E10: 15.58641975 | F10: 23.30246914 | H10: 2 | I10: 200
A11: 3 of a kind (2) | B11: 230 | C11: 20 | D11: 0.01543209877 | E11: 3.549382716 | F11: 11.2654321 | H11: 3 | I11: 0 | L11: 1 | M11: 5 | N11: 5 | O11: x | P11: I can pick up all 3 and bank
A12: 3 of a kind (3) | B12: 330 | C12: 20 | D12: 0.01543209877 | E12: 5.092592593 | F12: 12.80864198 | H12: 4 | I12: 500 | P12: Picking up a 1 has highest expected, but it can't beat guaranteed 200
A13: 3 of a kind (4) | B13: 430 | C13: 20 | D13: 0.01543209877 | E13: 6.635802469 | F13: 14.35185185 | H13: 5 | I13: 400 | K13: 50 | L13: 5 | M13: 5 | N13: x | P13: If I pick up both, I can't bank
A14: 3 of a kind (5) | B14: 520 | C14: 20 | D14: 0.01543209877 | E14: 8.024691358 | F14: 15.74074074 | H14: 6 | I14: 0 | P14: If I only pick up 1, I have a better chance to survive than to pick up both
A15: 3 of a kind (6) | B15: 630 | C15: 20 | D15: 0.01543209877 | E15: 9.722222222 | F15: 17.4382716 | H15: 7 | I15: 0 | P15: Even though both situations are unfavorable
A16: Axxx (no straight) | B16: 100 | C16: 240 | D16: 0.1851851852 | E16: 18.51851852 | F16: 111.1111111 | H16: 8 | I16: 450
A17: Aaxx | B17: 200 | C17: 96 | D17: 0.07407407407 | E17: 14.81481481 | F17: 51.85185185 | H17: 9 | I17: 300
A18: AA5x | B18: 250 | C18: 48 | D18: 0.03703703704 | E18: 9.259259259 | F18: 27.77777778 | H18: 10 | I18: 0
A19: A5xx | B19: 150 | C19: =144+48 -> 192 | D19: 0.1481481481 | E19: 22.22222222 | F19: 96.2962963 | H19: total | I19: =SUM(I9:I18) -> 2050
A20: 5xxx (no straight) | B20: 50 | C20: 240 | D20: 0.1851851852 | E20: 9.259259259 | F20: 101.8518519
A21: 55xx | B21: 100 | C21: 96 | D21: 0.07407407407 | E21: 7.407407407 | F21: 44.44444444
A22: 55Ax | B22: 200 | C22: 48 | D22: 0.03703703704 | E22: 7.407407407 | F22: 25.92592593
A23: AA55 | B23: 300 | C23: 6 | D23: 0.00462962963 | E23: 1.388888889 | F23: 3.703703704
A26: Totals | C26: =SUM(C3:C23) -> 1296 | D26: =SUM(D3:D23) -> 1 | E26: =SUM(E3:E23) -> 143.5185185 | F26: =SUM(F3:F23) -> 486.1111111
A28: 3 Dice
A29: outcome | B29: points | C29: number of ways | D29: probability | E29: weighted points | F29: possible points
A30: farkle | B30: 0 | C30: 60 | D30: =C30/(6^3) -> 0.2777777778 | E30: =B30*D30 -> 0 | F30: =IF(J3="Y",(-$H$3-300)*D30,-$H$3*D30) -> -138.8888889
A31: 3 of a kind (1) | B31: 1000 | C31: 1 | D31: =C31/(6^3) -> 0.00462962963 | E31: 4.62962963 | F31: =D31*($H$3+B31) -> 6.944444444
A32: 3 of a kind (2) | B32: 200 | C32: 1 | D32: 0.00462962963 | E32: 0.9259259259 | F32: =D32*($H$3+B32) -> 3.240740741
A33: 3 of a kind (3) | B33: 300 | C33: 1 | D33: 0.00462962963 | E33: 1.388888889 | F33: 3.703703704
A34: 3 of a kind (4) | B34: 400 | C34: 1 | D34: 0.00462962963 | E34: 1.851851852 | F34: 4.166666667
A35: 3 of a kind (5) | B35: 500 | C35: 1 | D35: 0.00462962963 | E35: 2.314814815 | F35: 4.62962963
A36: 3 of a kind (6) | B36: 600 | C36: 1 | D36: 0.00462962963 | E36: 2.777777778 | F36: 5.092592593
A37: Axx | B37: 100 | C37: 48 | D37: 0.2222222222 | E37: 22.22222222 | F37: 133.3333333
A38: Aax | B38: 200 | C38: 12 | D38: 0.05555555556 | E38: 11.11111111 | F38: 38.88888889
A39: AA5 | B39: 250 | C39: 3 | D39: 0.01388888889 | E39: 3.472222222 | F39: 10.41666667
A40: A5x | B40: 150 | C40: 24 | D40: 0.1111111111 | E40: 16.66666667 | F40: 72.22222222
A41: 5xx | B41: 50 | C41: 48 | D41: 0.2222222222 | E41: 11.11111111 | F41: 122.2222222
A42: 55x | B42: 100 | C42: 12 | D42: 0.05555555556 | E42: 5.555555556 | F42: 33.33333333
A43: 55A | B43: 200 | C43: 3 | D43: 0.01388888889 | E43: 2.777777778 | F43: 9.722222222
A45: Totals | C45: =SUM(C30:C43) -> 216 | D45: =SUM(D30:D43) -> 1 | E45: 86.80555556 | F45: =SUM(F30:F43) -> 309.0277778
A47: 2 Dice
A48: outcome | B48: points | C48: number of ways | D48: probability | E48: weighted points | F48: possible points
A49: farkle | B49: 0 | C49: 16 | D49: =C49/(6^2) -> 0.4444444444 | E49: =B49*D49 -> 0 | F49: =IF(J3="Y",(-$H$3-300)*D49,-$H$3*D49) -> -222.2222222
A50: Ax | B50: 100 | C50: 8 | D50: =C50/(6^2) -> 0.2222222222 | E50: 22.22222222 | F50: =D50*($H$3+B50) -> 133.3333333
A51: AA | B51: 200 | C51: 1 | D51: 0.02777777778 | E51: 5.555555556 | F51: 19.44444444
A52: 5x | B52: 50 | C52: 8 | D52: 0.2222222222 | E52: 11.11111111 | F52: 122.2222222
A53: 55 | B53: 100 | C53: 1 | D53: 0.02777777778 | E53: 2.777777778 | F53: 16.66666667
A54: A5 | B54: 150 | C54: 2 | D54: 0.05555555556 | E54: 8.333333333 | F54: 36.11111111
A56: Totals | C56: =SUM(C49:C54) -> 36 | D56: =SUM(D49:D54) -> 1 | E56: =SUM(E49:E54) -> 50 | F56: =SUM(F49:F54) -> 105.5555556
A58: 1 Dice
A59: outcome | B59: points | C59: number of ways | D59: probability | E59: weighted points | F59: possible points
A60: farkle | B60: 0 | C60: 4 | D60: =C60/(6^1) -> 0.6666666667 | E60: =B60*D60 -> 0 | F60: =IF(J3="Y",(-$H$3-300)*D60,-$H$3*D60) -> -333.3333333
A61: A | B61: 100 | C61: 1 | D61: =C61/(6^1) -> 0.1666666667 | E61: =B61*D61 -> 16.66666667 | F61: =D61*($H$3+B61) -> 100
A62: 5 | B62: 50 | C62: 1 | D62: 0.1666666667 | E62: =B62*D62 -> 8.333333333 | F62: 91.66666667
A64: Totals | C64: =SUM(C60:C62) -> 6 | D64: =SUM(D60:D62) -> 1 | E64: =SUM(E60:E62) -> 25 | F64: =SUM(F60:F62) -> -141.6666667

Sheet 6 Dice Game
A1: Current Score | B1: Dice to Roll | C1: 2 Farkles? | I1: Dice 1 | J1: Dice 2 | K1: Dice 3 | L1: Dice 4 | M1: Dice 5 | N1: Dice 6 | O1: points | P1: New Score | R1: Dice 1 | S1: Dice 2 | T1: Dice 3 | U1: Dice 4 | V1: Dice 5 | W1: Points | X1: New Score | Z1: Dice 1 | AA1: Dice 2 | AB1: Dice 3 | AC1: Dice 4 | AD1: Points | AE1: New Score | AG1: Dice 1 | AH1: Dice 2 | AI1: Dice 3 | AJ1: Points | AK1: New Score | AM1: Dice 1 | AN1: Dice 2 | AO1: Points | AP1: New Score | AR1: Dice 1 | AS1: Points | AT1: New Score
A2: 100 | B2: 5 | C2: n | I2: 1 | J2: 1 | K2: 1 | L2: 1 | M2: 1 | N2: 1 | O2: =calculateScore(I2,J2,K2,L2,M2,N2) -> 4000 | P2: =IF(O2=0,IF($C$2= "Y",-500,0),$A$2+O2) -> 4100 | R2: 1 | S2: 1 | T2: 1 | U2: 1 | V2: 1 | W2: =calculateScore(R2,S2,T2,U2,V2,0) -> 3000 | X2: =IF(W2=0,IF($C$2= "Y",-500,0), $A$2+W2) -> 3100 | Z2: 1 | AA2: 1 | AB2: 1 | AC2: 1 | AD2: =calculateScore(Z2,AA2,AB2,AC2,0,0) -> 2000 | AE2: =IF(AD2=0,IF($C$2= "Y",-500,0), $A$2+AD2) -> 2100 | AG2: 1 | AH2: 1 | AI2: 1 | AJ2: =calculateScore(AG2,AH2,AI2,0,0,0) -> 1000 | AK2: =IF(AJ2=0,IF($C$2= "Y",-500,0), $A$2+AJ2+AVERAGE(O2:O46657)-(1080/46656)*($A$2+AS2)) -> 1474.678498 | AM2: 1 | AN2: 1 | AO2: =calculateScore(AM2,AN2,0,0,0,0) -> 200 | AP2: =IF(AO2=0,IF($C$2= "Y",-500,0), $A$2+AO2+AVERAGE(O2:O46657)-(1080/46656)*($A$2+AS2)) -> 674.6784979 | AR2: 1 | AS2: =calculateScore(AR2,0,0,0,0,0) -> 100 | AT2: =IF(AS2=0,IF($C$2="Y",-500,0),$A$2+AS2+AVERAGE(O2:O46657)-(1080/46656)*($A$2+AS2)) -> 574.6784979
I3: 1 | J3: 1 | K3: 1 | L3: 1 | M3: 1 | N3: 2 | O3: =calculateScore(I3,J3,K3,L3,M3,N3) -> 3000 | P3: =IF(O3=0,IF($C$2= "Y",-500,0),$A$2+O3) -> 3100 | R3: 1 | S3: 1 | T3: 1 | U3: 1 | V3: 2 | W3: 2000 | X3: =IF(W3=0,IF($C$2= "Y",-500,0), $A$2+W3) -> 2100 | Z3: 1 | AA3: 1 | AB3: 1 | AC3: 2 | AD3: 1000 | AE3: =IF(AD3=0,IF($C$2= "Y",-500,0), $A$2+AD3) -> 1100 | AG3: 1 | AH3: 1 | AI3: 2 | AJ3: =calculateScore(AG3,AH3,AI3,0,0,0) -> 200 | AK3: =IF(AJ3=0,IF($C$2= "Y",-500,0), $A$2+AJ3) -> 300 | AM3: 1 | AN3: 2 | AO3: 100 | AP3: =IF(AO3=0,IF($C$2= "Y",-500,0), $A$2+AO3) -> 200 | AR3: 2 | AS3: =calculateScore(AR3,0,0,0,0,0) -> 0 | AT3: =IF(AS3=0,IF($C$2= "Y",-500,0), $A$2+AS3) -> 0
A4: Expected Value | I4: 1 | J4: 1 | K4: 1 | L4: 1 | M4: 1 | N4: 3 | O4: 3000 | P4: 3100 | R4: 1 | S4: 1 | T4: 1 | U4: 1 | V4: 3 | W4: 2000 | X4: 2100 | Z4: 1 | AA4: 1 | AB4: 1 | AC4: 3 | AD4: 1000 | AE4: 1100 | AG4: 1 | AH4: 1 | AI4: 3 | AJ4: =calculateScore(AG4,AH4,AI4,0,0,0) -> 200 | AK4: 300 | AM4: 1 | AN4: 3 | AO4: 100 | AP4: 200 | AR4: 3 | AS4: =calculateScore(AR4,0,0,0,0,0) -> 0 | AT4: 0
A5: =IF(B2=6,AVERAGE(P2:P46657),IF(B2=5,AVERAGE(X2:X7777),IF(B2=4,AVERAGE(AE2:AE1297),IF(B2=3,AVERAGE(AK2:AK217),IF(B2=2,AVERAGE(AP2:AP37),IF(B2=1,AVERAGE(AT2:AT7),0)))))) -> 317.6890432 | I5: 1 | J5: 1 | K5: 1 | L5: 1 | M5: 1 | N5: 4 | O5: 3000 | P5: 3100 | R5: 1 | S5: 1 | T5: 1 | U5: 1 | V5: 4 | W5: 2000 | X5: 2100 | Z5: 1 | AA5: 1 | AB5: 1 | AC5: 4 | AD5: 1000 | AE5: 1100 | AG5: 1 | AH5: 1 | AI5: 4 | AJ5: 200 | AK5: 300 | AM5: 1 | AN5: 4 | AO5: 100 | AP5: 200 | AR5: 4 | AS5: =calculateScore(AR5,0,0,0,0,0) -> 0 | AT5: 0
I6: 1 | J6: 1 | K6: 1 | L6: 1 | M6: 1 | N6: 5 | O6: 3050 | P6: 3150 | R6: 1 | S6: 1 | T6: 1 | U6: 1 | V6: 5 | W6: 2050 | X6: 2150 | Z6: 1 | AA6: 1 | AB6: 1 | AC6: 5 | AD6: 1050 | AE6: 1150 | AG6: 1 | AH6: 1 | AI6: 5 | AJ6: 250 | AK6: =IF(AJ6=0,IF($C$2= "Y",-500,0), $A$2+AJ6+AVERAGE(O2:O46657)-(1080/46656)*($A$2+AS2)) -> 724.6784979 | AM6: 1 | AN6: 5 | AO6: 150 | AP6: =IF(AO6=0,IF($C$2= "Y",-500,0), $A$2+AO6+AVERAGE(O2:O46657)-(1080/46656)*($A$2+AS2)) -> 624.6784979 | AR6: 5 | AS6: =calculateScore(AR6,0,0,0,0,0) -> 50 | AT6: =IF(AS6=0,IF($C$2= "Y",-500,0), $A$2+AS6+AVERAGE(O2:O46657)-(1080/46656)*($A$2+AS2)) -> 524.6784979
I7: 1 | J7: 1 | K7: 1 | L7: 1 | M7: 1 | N7: 6 | O7: 3000 | P7: 3100 | R7: 1 | S7: 1 | T7: 1 | U7: 1 | V7: 6 | W7: 2000 | X7: 2100 | Z7: 1 | AA7: 1 | AB7: 1 | AC7: 6 | AD7: 1000 | AE7: 1100 | AG7: 1 | AH7: 1 | AI7: 6 | AJ7: 200 | AK7: 300 | AM7: 1 | AN7: 6 | AO7: 100 | AP7: 200 | AR7: 6 | AS7: =calculateScore(AR7,0,0,0,0,0) -> 0 | AT7: 0
I8: 1 | J8: 1 | K8: 1 | L8: 1 | M8: 2 | N8: 1 | O8: 3000 | P8: 3100 | R8: 1 | S8: 1 | T8: 1 | U8: 2 | V8: 1 | W8: 2000 | X8: 2100 | Z8: 1 | AA8: 1 | AB8: 2 | AC8: 1 | AD8: 1000 | AE8: 1100 | AG8: 1 | AH8: 2 | AI8: 1 | AJ8: 200 | AK8: 300 | AM8: 2 | AN8: 1 | AO8: 100 | AP8: 200
A9: Dice Simulator | B9: Dice 1 | C9: Dice 2 | D9: Dice 3 | E9: Dice 4 | F9: Dice 5 | G9: Dice 6 | I9: 1 | J9: 1 | K9: 1 | L9: 1 | M9: 2 | N9: 2 | O9: 2000 | P9: 2100 | R9: 1 | S9: 1 | T9: 1 | U9: 2 | V9: 2 | W9: 1000 | X9: 1100 | Z9: 1 | AA9: 1 | AB9: 2 | AC9: 2 | AD9: 200 | AE9: 300 | AG9: 1 | AH9: 2 | AI9: 2 | AJ9: 100 | AK9: 200 | AM9: 2 | AN9: 2 | AO9: 0 | AP9: 0
B10: 5 | C10: 4 | D10: 4 | I10: 1 | J10: 1 | K10: 1 | L10: 1 | M10: 2 | N10: 3 | O10: 2000 | P10: 2100 | R10: 1 | S10: 1 | T10: 1 | U10: 2 | V10: 3 | W10: 1000 | X10: 1100 | Z10: 1 | AA10: 1 | AB10: 2 | AC10: 3 | AD10: 200 | AE10: 300 | AG10: 1 | AH10: 2 | AI10: 3 | AJ10: 100 | AK10: 200 | AM10: 2 | AN10: 3 | AO10: 0 | AP10: 0
I11: 1 | J11: 1 | K11: 1 | L11: 1 | M11: 2 | N11: 4 | O11: 2000 | P11: 2100 | R11: 1 | S11: 1 | T11: 1 | U11: 2 | V11: 4 | W11: 1000 | X11: 1100 | Z11: 1 | AA11: 1 | AB11: 2 | AC11: 4 | AD11: 200 | AE11: 300 | AG11: 1 | AH11: 2 | AI11: 4 | AJ11: 100 | AK11: 200 | AM11: 2 | AN11: 4 | AO11: 0 | AP11: 0
I12: 1 | J12: 1 | K12: 1 | L12: 1 | M12: 2 | N12: 5 | O12: 2050 | P12: 2150 | R12: 1 | S12: 1 | T12: 1 | U12: 2 | V12: 5 | W12: 1050 | X12: 1150 | Z12: 1 | AA12: 1 | AB12: 2 | AC12: 5 | AD12: =calculateScore(Z12,AA12,AB12,AC12,0,0) -> 250 | AE12: 350 | AG12: 1 | AH12: 2 | AI12: 5 | AJ12: 150 | AK12: 250 | AM12: 2 | AN12: 5 | AO12: 50 | AP12: 150
A13: start | I13: 1 | J13: 1 | K13: 1 | L13: 1 | M13: 2 | N13: 6 | O13: 2000 | P13: 2100 | R13: 1 | S13: 1 | T13: 1 | U13: 2 | V13: 6 | W13: 1000 | X13: 1100 | Z13: 1 | AA13: 1 | AB13: 2 | AC13: 6 | AD13: 200 | AE13: 300 | AG13: 1 | AH13: 2 | AI13: 6 | AJ13: 100 | AK13: 200 | AM13: 2 | AN13: 6 | AO13: 0 | AP13: 0
A14: 0 | I14: 1 | J14: 1 | K14: 1 | L14: 1 | M14: 3 | N14: 1 | O14: 3000 | P14: 3100 | R14: 1 | S14: 1 | T14: 1 | U14: 3 | V14: 1 | W14: 2000 | X14: 2100 | Z14: 1 | AA14: 1 | AB14: 3 | AC14: 1 | AD14: 1000 | AE14: 1100 | AG14: 1 | AH14: 3 | AI14: 1 | AJ14: 200 | AK14: 300 | AM14: 3 | AN14: 1 | AO14: 100 | AP14: 200
A15: pick up | B15: reroll | C15: EV | I15: 1 | J15: 1 | K15: 1 | L15: 1 | M15: 3 | N15: 2 | O15: 2000 | P15: 2100 | R15: 1 | S15: 1 | T15: 1 | U15: 3 | V15: 2 | W15: 1000 | X15: 1100 | Z15: 1 | AA15: 1 | AB15: 3 | AC15: 2 | AD15: 200 | AE15: 300 | AG15: 1 | AH15: 3 | AI15: 2 | AJ15: 100 | AK15: 200 | AM15: 3 | AN15: 2 | AO15: 0 | AP15: 0
A16: 100 | B16: 5 | C16: 310 | I16: 1 | J16: 1 | K16: 1 | L16: 1 | M16: 3 | N16: 3 | O16: 2000 | P16: 2100 | R16: 1 | S16: 1 | T16: 1 | U16: 3 | V16: 3 | W16: 1000 | X16: 1100 | Z16: 1 | AA16: 1 | AB16: 3 | AC16: 3 | AD16: 200 | AE16: 300 | AG16: 1 | AH16: 3 | AI16: 3 | AJ16: 100 | AK16: 200 | AM16: 3 | AN16: 3 | AO16: 0 | AP16: 0
A17: 600 | B17: 3 | C17: 600 | I17: 1 | J17: 1 | K17: 1 | L17: 1 | M17: 3 | N17: 4 | O17: 2000 | P17: 2100 | R17: 1 | S17: 1 | T17: 1 | U17: 3 | V17: 4 | W17: 1000 | X17: 1100 | Z17: 1 | AA17: 1 | AB17: 3 | AC17: 4 | AD17: 200 | AE17: 300 | AG17: 1 | AH17: 3 | AI17: 4 | AJ17: 100 | AK17: 200 | AM17: 3 | AN17: 4 | AO17: 0 | AP17: 0
A18: 150 | B18: 4 | C18: 245 | I18: 1 | J18: 1 | K18: 1 | L18: 1 | M18: 3 | N18: 5 | O18: 2050 | P18: 2150 | R18: 1 | S18: 1 | T18: 1 | U18: 3 | V18: 5 | W18: 1050 | X18: 1150 | Z18: 1 | AA18: 1 | AB18: 3 | AC18: 5 | AD18: 250 | AE18: 350 | AG18: 1 | AH18: 3 | AI18: 5 | AJ18: 150 | AK18: 250 | AM18: 3 | AN18: 5 | AO18: 50 | AP18: 150
A19: 750 | B19: 2 | C19: 750 | I19: 1 | J19: 1 | K19: 1 | L19: 1 | M19: 3 | N19: 6 | O19: 2000 | P19: 2100 | R19: 1 | S19: 1 | T19: 1 | U19: 3 | V19: 6 | W19: 1000 | X19: 1100 | Z19: 1 | AA19: 1 | AB19: 3 | AC19: 6 | AD19: 200 | AE19: 300 | AG19: 1 | AH19: 3 | AI19: 6 | AJ19: 100 | AK19: 200 | AM19: 3 | AN19: 6 | AO19: 0 | AP19: 0
I20: 1 | J20: 1 | K20: 1 | L20: 1 | M20: 4 | N20: 1 | O20: 3000 | P20: 3100 | R20: 1 | S20: 1 | T20: 1 | U20: 4 | V20: 1 | W20: 2000 | X20: 2100 | Z20: 1 | AA20: 1 | AB20: 4 | AC20: 1 | AD20: 1000 | AE20: 1100 | AG20: 1 | AH20: 4 | AI20: 1 | AJ20: 200 | AK20: 300 | AM20: 4 | AN20: 1 | AO20: 100 | AP20: 200
I21: 1 | J21: 1 | K21: 1 | L21: 1 | M21: 4 | N21: 2 | O21: 2000 | P21: 2100 | R21: 1 | S21: 1 | T21: 1 | U21: 4 | V21: 2 | W21: 1000 | X21: 1100 | Z21: 1 | AA21: 1 | AB21: 4 | AC21: 2 | AD21: 200 | AE21: 300 | AG21: 1 | AH21: 4 | AI21: 2 | AJ21: 100 | AK21: 200 | AM21: 4 | AN21: 2 | AO21: =calculateScore(AM21,AN21,0,0,0,0) -> 0 | AP21: 0
I22: 1 | J22: 1 | K22: 1 | L22: 1 | M22: 4 | N22: 3 | O22: 2000 | P22: 2100 | R22: 1 | S22: 1 | T22: 1 | U22: 4 | V22: 3 | W22: 1000 | X22: 1100 | Z22: 1 | AA22: 1 | AB22: 4 | AC22: 3 | AD22: 200 | AE22: 300 | AG22: 1 | AH22: 4 | AI22: 3 | AJ22: 100 | AK22: 200 | AM22: 4 | AN22: 3 | AO22: 0 | AP22: 0
I23: 1 | J23: 1 | K23: 1 | L23: 1 | M23: 4 | N23: 4 | O23: 2000 | P23: 2100 | R23: 1 | S23: 1 | T23: 1 | U23: 4 | V23: 4 | W23: 1000 | X23: 1100 | Z23: 1 | AA23: 1 | AB23: 4 | AC23: 4 | AD23: 200 | AE23: 300 | AG23: 1 | AH23: 4 | AI23: 4 | AJ23: 100 | AK23: 200 | AM23: 4 | AN23: 4 | AO23: 0 | AP23: 0
I24: 1 | J24: 1 | K24: 1 | L24: 1 | M24: 4 | N24: 5 | O24: 2050 | P24: 2150 | R24: 1 | S24: 1 | T24: 1 | U24: 4 | V24: 5 | W24: 1050 | X24: 1150 | Z24: 1 | AA24: 1 | AB24: 4 | AC24: 5 | AD24: 250 | AE24: 350 | AG24: 1 | AH24: 4 | AI24: 5 | AJ24: 150 | AK24: 250 | AM24: 4 | AN24: 5 | AO24: 50 | AP24: 150
I25: 1 | J25: 1 | K25: 1 | L25: 1 | M25: 4 | N25: 6 | O25: 2000 | P25: 2100 | R25: 1 | S25: 1 | T25: 1 | U25: 4 | V25: 6 | W25: 1000 | X25: 1100 | Z25: 1 | AA25: 1 | AB25: 4 | AC25: 6 | AD25: 200 | AE25: 300 | AG25: 1 | AH25: 4 | AI25: 6 | AJ25: 100 | AK25: 200 | AM25: 4 | AN25: 6 | AO25: 0 | AP25: 0
I26: 1 | J26: 1 | K26: 1 | L26: 1 | M26: 5 | N26: 1 | O26: 3050 | P26: 3150 | R26: 1 | S26: 1 | T26: 1 | U26: 5 | V26: 1 | W26: 2050 | X26: 2150 | Z26: 1 | AA26: 1 | AB26: 5 | AC26: 1 | AD26: 1050 | AE26: 1150 | AG26: 1 | AH26: 5 | AI26: 1 | AJ26: 250 | AK26: =IF(AJ26=0,IF($C$2= "Y",-500,0), $A$2+AJ26+AVERAGE(O2:O46657)-(1080/46656)*($A$2+AS2)) -> 724.6784979 | AM26: 5 | AN26: 1 | AO26: 150 | AP26: =IF(AO26=0,IF($C$2= "Y",-500,0), $A$2+AO26+AVERAGE(O2:O46657)-(1080/46656)*($A$2+AS2)) -> 624.6784979
I27: 1 | J27: 1 | K27: 1 | L27: 1 | M27: 5 | N27: 2 | O27: 2050 | P27: 2150 | R27: 1 | S27: 1 | T27: 1 | U27: 5 | V27: 2 | W27: 1050 | X27: 1150 | Z27: 1 | AA27: 1 | AB27: 5 | AC27: 2 | AD27: 250 | AE27: 350 | AG27: 1 | AH27: 5 | AI27: 2 | AJ27: 150 | AK27: 250 | AM27: 5 | AN27: 2 | AO27: 50 | AP27: 150
I28: 1 | J28: 1 | K28: 1 | L28: 1 | M28: 5 | N28: 3 | O28: 2050 | P28: 2150 | R28: 1 | S28: 1 | T28: 1 | U28: 5 | V28: 3 | W28: 1050 | X28: 1150 | Z28: 1 | AA28: 1 | AB28: 5 | AC28: 3 | AD28: 250 | AE28: 350 | AG28: 1 | AH28: 5 | AI28: 3 | AJ28: 150 | AK28: 250 | AM28: 5 | AN28: 3 | AO28: 50 | AP28: 150
I29: 1 | J29: 1 | K29: 1 | L29: 1 | M29: 5 | N29: 4 | O29: 2050 | P29: 2150 | R29: 1 | S29: 1 | T29: 1 | U29: 5 | V29: 4 | W29: 1050 | X29: 1150 | Z29: 1 | AA29: 1 | AB29: 5 | AC29: 4 | AD29: 250 | AE29: 350 | AG29: 1 | AH29: 5 | AI29: 4 | AJ29: 150 | AK29: 250 | AM29: 5 | AN29: 4 | AO29: 50 | AP29: 150
I30: 1 | J30: 1 | K30: 1 | L30: 1 | M30: 5 | N30: 5 | O30: 2100 | P30: 2200 | R30: 1 | S30: 1 | T30: 1 | U30: 5 | V30: 5 | W30: 1100 | X30: 1200 | Z30: 1 | AA30: 1 | AB30: 5 | AC30: 5 | AD30: 300 | AE30: 400 | AG30: 1 | AH30: 5 | AI30: 5 | AJ30: 200 | AK30: =IF(AJ30=0,IF($C$2= "Y",-500,0), $A$2+AJ30+AVERAGE(O2:O46657)-(1080/46656)*($A$2+AS2)) -> 674.6784979 | AM30: 5 | AN30: 5 | AO30: 100 | AP30: =IF(AO30=0,IF($C$2= "Y",-500,0), $A$2+AO30+AVERAGE(O2:O46657)-(1080/46656)*($A$2+AS2)) -> 574.6784979
I31: 1 | J31: 1 | K31: 1 | L31: 1 | M31: 5 | N31: 6 | O31: 2050 | P31: 2150 | R31: 1 | S31: 1 | T31: 1 | U31: 5 | V31: 6 | W31: 1050 | X31: 1150 | Z31: 1 | AA31: 1 | AB31: 5 | AC31: 6 | AD31: 250 | AE31: 350 | AG31: 1 | AH31: 5 | AI31: 6 | AJ31: 150 | AK31: 250 | AM31: 5 | AN31: 6 | AO31: 50 | AP31: 150
I32: 1 | J32: 1 | K32: 1 | L32: 1 | M32: 6 | N32: 1 | O32: 3000 | P32: 3100 | R32: 1 | S32: 1 | T32: 1 | U32: 6 | V32: 1 | W32: 2000 | X32: 2100 | Z32: 1 | AA32: 1 | AB32: 6 | AC32: 1 | AD32: 1000 | AE32: 1100 | AG32: 1 | AH32: 6 | AI32: 1 | AJ32: 200 | AK32: 300 | AM32: 6 | AN32: 1 | AO32: 100 | AP32: 200
I33: 1 | J33: 1 | K33: 1 | L33: 1 | M33: 6 | N33: 2 | O33: 2000 | P33: 2100 | R33: 1 | S33: 1 | T33: 1 | U33: 6 | V33: 2 | W33: 1000 | X33: 1100 | Z33: 1 | AA33: 1 | AB33: 6 | AC33: 2 | AD33: 200 | AE33: 300 | AG33: 1 | AH33: 6 | AI33: 2 | AJ33: 100 | AK33: 200 | AM33: 6 | AN33: 2 | AO33: 0 | AP33: 0
I34: 1 | J34: 1 | K34: 1 | L34: 1 | M34: 6 | N34: 3 | O34: 2000 | P34: 2100 | R34: 1 | S34: 1 | T34: 1 | U34: 6 | V34: 3 | W34: 1000 | X34: 1100 | Z34: 1 | AA34: 1 | AB34: 6 | AC34: 3 | AD34: 200 | AE34: 300 | AG34: 1 | AH34: 6 | AI34: 3 | AJ34: 100 | AK34: 200 | AM34: 6 | AN34: 3 | AO34: 0 | AP34: 0
I35: 1 | J35: 1 | K35: 1 | L35: 1 | M35: 6 | N35: 4 | O35: 2000 | P35: 2100 | R35: 1 | S35: 1 | T35: 1 | U35: 6 | V35: 4 | W35: 1000 | X35: 1100 | Z35: 1 | AA35: 1 | AB35: 6 | AC35: 4 | AD35: 200 | AE35: 300 | AG35: 1 | AH35: 6 | AI35: 4 | AJ35: 100 | AK35: 200 | AM35: 6 | AN35: 4 | AO35: 0 | AP35: 0
I36: 1 | J36: 1 | K36: 1 | L36: 1 | M36: 6 | N36: 5 | O36: 2050 | P36: 2150 | R36: 1 | S36: 1 | T36: 1 | U36: 6 | V36: 5 | W36: 1050 | X36: 1150 | Z36: 1 | AA36: 1 | AB36: 6 | AC36: 5 | AD36: 250 | AE36: 350 | AG36: 1 | AH36: 6 | AI36: 5 | AJ36: 150 | AK36: 250 | AM36: 6 | AN36: 5 | AO36: 50 | AP36: 150
I37: 1 | J37: 1 | K37: 1 | L37: 1 | M37: 6 | N37: 6 | O37: 2000 | P37: 2100 | R37: 1 | S37: 1 | T37: 1 | U37: 6 | V37: 6 | W37: 1000 | X37: 1100 | Z37: 1 | AA37: 1 | AB37: 6 | AC37: 6 | AD37: 200 | AE37: 300 | AG37: 1 | AH37: 6 | AI37: 6 | AJ37: 100 | AK37: 200 | AM37: 6 | AN37: 6 | AO37: 0 | AP37: 0
I38: 1 | J38: 1 | K38: 1 | L38: 2 | M38: 1 | N38: 1 | O38: 3000 | P38: 3100 | R38: 1 | S38: 1 | T38: 2 | U38: 1 | V38: 1 | W38: 2000 | X38: 2100 | Z38: 1 | AA38: 2 | AB38: 1 | AC38: 1 | AD38: 1000 | AE38: 1100 | AG38: 2 | AH38: 1 | AI38: 1 | AJ38: 200 | AK38: 300
I39: 1 | J39: 1 | K39: 1 | L39: 2 | M39: 1 | N39: 2 | O39: 2000 | P39: 2100 | R39: 1 | S39: 1 | T39: 2 | U39: 1 | V39: 2 | W39: 1000 | X39: 1100 | Z39: 1 | AA39: 2 | AB39: 1 | AC39: 2 | AD39: 200 | AE39: 300 | AG39: 2 | AH39: 1 | AI39: 2 | AJ39: 100 | AK39: 200
I40: 1 | J40: 1 | K40: 1 | L40: 2 | M40: 1 | N40: 3 | O40: 2000 | P40: 2100 | R40: 1 | S40: 1 | T40: 2 | U40: 1 | V40: 3 | W40: 1000 | X40: 1100 | Z40: 1 | AA40: 2 | AB40: 1 | AC40: 3 | AD40: 200 | AE40: 300 | AG40: 2 | AH40: 1 | AI40: 3 | AJ40: 100 | AK40: 200
I41: 1 | J41: 1 | K41: 1 | L41: 2 | M41: 1 | N41: 4 | O41: 2000 | P41: 2100 | R41: 1 | S41: 1 | T41: 2 | U41: 1 | V41: 4 | W41: 1000 | X41: 1100 | Z41: 1 | AA41: 2 | AB41: 1 | AC41: 4 | AD41: 200 | AE41: 300 | AG41: 2 | AH41: 1 | AI41: 4 | AJ41: 100 | AK41: 200
I42: 1 | J42: 1 | K42: 1 | L42: 2 | M42: 1 | N42: 5 | O42: 2050 | P42: 2150 | R42: 1 | S42: 1 | T42: 2 | U42: 1 | V42: 5 | W42: 1050 | X42: 1150 | Z42: 1 | AA42: 2 | AB42: 1 | AC42: 5 | AD42: 250 | AE42: 350 | AG42: 2 | AH42: 1 | AI42: 5 | AJ42: 150 | AK42: 250
I43: 1 | J43: 1 | K43: 1 | L43: 2 | M43: 1 | N43: 6 | O43: 2000 | P43: 2100 | R43: 1 | S43: 1 | T43: 2 | U43: 1 | V43: 6 | W43: 1000 | X43: 1100 | Z43: 1 | AA43: 2 | AB43: 1 | AC43: 6 | AD43: 200 | AE43: 300 | AG43: 2 | AH43: 1 | AI43: 6 | AJ43: 100 | AK43: 200
I44: 1 | J44: 1 | K44: 1 | L44: 2 | M44: 2 | N44: 1 | O44: 2000 | P44: 2100 | R44: 1 | S44: 1 | T44: 2 | U44: 2 | V44: 1 | W44: 1000 | X44: 1100 | Z44: 1 | AA44: 2 | AB44: 2 | AC44: 1 | AD44: 200 | AE44: 300 | AG44: 2 | AH44: 2 | AI44: 1 | AJ44: 100 | AK44: 200
I45: 1 | J45: 1 | K45: 1 | L45: 2 | M45: 2 | N45: 2 | O45: 1200 | P45: 1300 | R45: 1 | S45: 1 | T45: 2 | U45: 2 | V45: 2 | W45: 400 | X45: 500 | Z45: 1 | AA45: 2 | AB45: 2 | AC45: 2 | AD45: 300 | AE45: 400 | AG45: 2 | AH45: 2 | AI45: 2 | AJ45: 200 | AK45: =IF(AJ45=0,IF($C$2= "Y",-500,0), $A$2+AJ45+AVERAGE(O2:O46657)-(1080/46656)*($A$2+AS2)) -> 674.6784979
I46: 1 | J46: 1 | K46: 1 | L46: 2 | M46: 2 | N46: 3 | O46: 1000 | P46: 1100 | R46: 1 | S46: 1 | T46: 2 | U46: 2 | V46: 3 | W46: 200 | X46: 300 | Z46: 1 | AA46: 2 | AB46: 2 | AC46: 3 | AD46: 100 | AE46: 200 | AG46: 2 | AH46: 2 | AI46: 3 | AJ46: 0 | AK46: 0
I47: 1 | J47: 1 | K47: 1 | L47: 2 | M47: 2 | N47: 4 | O47: 1000 | P47: 1100 | R47: 1 | S47: 1 | T47: 2 | U47: 2 | V47: 4 | W47: 200 | X47: 300 | Z47: 1 | AA47: 2 | AB47: 2 | AC47: 4 | AD47: 100 | AE47: 200 | AG47: 2 | AH47: 2 | AI47: 4 | AJ47: 0 | AK47: 0
I48: 1 | J48: 1 | K48: 1 | L48: 2 | M48: 2 | N48: 5 | O48: 1050 | P48: 1150 | R48: 1 | S48: 1 | T48: 2 | U48: 2 | V48: 5 | W48: 250 | X48: 350 | Z48: 1 | AA48: 2 | AB48: 2 | AC48: 5 | AD48: 150 | AE48: 250 | AG48: 2 | AH48: 2 | AI48: 5 | AJ48: 50 | AK48: 150
I49: 1 | J49: 1 | K49: 1 | L49: 2 | M49: 2 | N49: 6 | O49: 1000 | P49: 1100 | R49: 1 | S49: 1 | T49: 2 | U49: 2 | V49: 6 | W49: 200 | X49: 300 | Z49: 1 | AA49: 2 | AB49: 2 | AC49: 6 | AD49: 100 | AE49: 200 | AG49: 2 | AH49: 2 | AI49: 6 | AJ49: 0 | AK49: 0
I50: 1 | J50: 1 | K50: 1 | L50: 2 | M50: 3 | N50: 1 | O50: 2000 | P50: 2100 | R50: 1 | S50: 1 | T50: 2 | U50: 3 | V50: 1 | W50: 1000 | X50: 1100 | Z50: 1 | AA50: 2 | AB50: 3 | AC50: 1 | AD50: 200 | AE50: 300 | AG50: 2 | AH50: 3 | AI50: 1 | AJ50: 100 | AK50: 200
I51: 1 | J51: 1 | K51: 1 | L51: 2 | M51: 3 | N51: 2 | O51: 1000 | P51: 1100 | R51: 1 | S51: 1 | T51: 2 | U51: 3 | V51: 2 | W51: 200 | X51: 300 | Z51: 1 | AA51: 2 | AB51: 3 | AC51: 2 | AD51: 100 | AE51: 200 | AG51: 2 | AH51: 3 | AI51: 2 | AJ51: 0 | AK51: 0
I52: 1 | J52: 1 | K52: 1 | L52: 2 | M52: 3 | N52: 3 | O52: 1000 | P52: 1100 | R52: 1 | S52: 1 | T52: 2 | U52: 3 | V52: 3 | W52: 200 | X52: 300 | Z52: 1 | AA52: 2 | AB52: 3 | AC52: 3 | AD52: 100 | AE52: 200 | AG52: 2 | AH52: 3 | AI52: 3 | AJ52: 0 | AK52: 0
I53: 1 | J53: 1 | K53: 1 | L53: 2 | M53: 3 | N53: 4 | O53: 1000 | P53: 1100 | R53: 1 | S53: 1 | T53: 2 | U53: 3 | V53: 4 | W53: 200 | X53: 300 | Z53: 1 | AA53: 2 | AB53: 3 | AC53: 4 | AD53: 100 | AE53: 200 | AG53: 2 | AH53: 3 | AI53: 4 | AJ53: 0 | AK53: 0
I54: 1 | J54: 1 | K54: 1 | L54: 2 | M54: 3 | N54: 5 | O54: 1050 | P54: 1150 | R54: 1 | S54: 1 | T54: 2 | U54: 3 | V54: 5 | W54: 250 | X54: 350 | Z54: 1 | AA54: 2 | AB54: 3 | AC54: 5 | AD54: 150 | AE54: 250 | AG54: 2 | AH54: 3 | AI54: 5 | AJ54: 50 | AK54: 150
I55: 1 | J55: 1 | K55: 1 | L55: 2 | M55: 3 | N55: 6 | O55: 1000 | P55: 1100 | R55: 1 | S55: 1 | T55: 2 | U55: 3 | V55: 6 | W55: 200 | X55: 300 | Z55: 1 | AA55: 2 | AB55: 3 | AC55: 6 | AD55: 100 | AE55: 200 | AG55: 2 | AH55: 3 | AI55: 6 | AJ55: 0 | AK55: 0
I56: 1 | J56: 1 | K56: 1 | L56: 2 | M56: 4 | N56: 1 | O56: 2000 | P56: 2100 | R56: 1 | S56: 1 | T56: 2 | U56: 4 | V56: 1 | W56: 1000 | X56: 1100 | Z56: 1 | AA56: 2 | AB56: 4 | AC56: 1 | AD56: 200 | AE56: 300 | AG56: 2 | AH56: 4 | AI56: 1 | AJ56: 100 | AK56: 200
I57: 1 | J57: 1 | K57: 1 | L57: 2 | M57: 4 | N57: 2 | O57: 1000 | P57: 1100 | R57: 1 | S57: 1 | T57: 2 | U57: 4 | V57: 2 | W57: 200 | X57: 300 | Z57: 1 | AA57: 2 | AB57: 4 | AC57: 2 | AD57: 100 | AE57: 200 | AG57: 2 | AH57: 4 | AI57: 2 | AJ57: 0 | AK57: 0
I58: 1 | J58: 1 | K58: 1 | L58: 2 | M58: 4 | N58: 3 | O58: 1000 | P58: 1100 | R58: 1 | S58: 1 | T58: 2 | U58: 4 | V58: 3 | W58: 200 | X58: 300 | Z58: 1 | AA58: 2 | AB58: 4 | AC58: 3 | AD58: 100 | AE58: 200 | AG58: 2 | AH58: 4 | AI58: 3 | AJ58: 0 | AK58: 0
I59: 1 | J59: 1 | K59: 1 | L59: 2 | M59: 4 | N59: 4 | O59: 1000 | P59: 1100 | R59: 1 | S59: 1 | T59: 2 | U59: 4 | V59: 4 | W59: 200 | X59: 300 | Z59: 1 | AA59: 2 | AB59: 4 | AC59: 4 | AD59: 100 | AE59: 200 | AG59: 2 | AH59: 4 | AI59: 4 | AJ59: 0 | AK59: 0
I60: 1 | J60: 1 | K60: 1 | L60: 2 | M60: 4 | N60: 5 | O60: 1050 | P60: 1150 | R60: 1 | S60: 1 | T60: 2 | U60: 4 | V60: 5 | W60: 250 | X60: 350 | Z60: 1 | AA60: 2 | AB60: 4 | AC60: 5 | AD60: 150 | AE60: 250 | AG60: 2 | AH60: 4 | AI60: 5 | AJ60: 50 | AK60: 150
I61: 1 | J61: 1 | K61: 1 | L61: 2 | M61: 4 | N61: 6 | O61: 1000 | P61: 1100 | R61: 1 | S61: 1 | T61: 2 | U61: 4 | V61: 6 | W61: 200 | X61: 300 | Z61: 1 | AA61: 2 | AB61: 4 | AC61: 6 | AD61: 100 | AE61: 200 | AG61: 2 | AH61: 4 | AI61: 6 | AJ61: 0 | AK61: 0
I62: 1 | J62: 1 | K62: 1 | L62: 2 | M62: 5 | N62: 1 | O62: 2050 | P62: 2150 | R62: 1 | S62: 1 | T62: 2 | U62: 5 | V62: 1 | W62: 1050 | X62: 1150 | Z62: 1 | AA62: 2 | AB62: 5 | AC62: 1 | AD62: 250 | AE62: 350 | AG62: 2 | AH62: 5 | AI62: 1 | AJ62: 150 | AK62: 250
I63: 1 | J63: 1 | K63: 1 | L63: 2 | M63: 5 | N63: 2 | O63: 1050 | P63: 1150 | R63: 1 | S63: 1 | T63: 2 | U63: 5 | V63: 2 | W63: 250 | X63: 350 | Z63: 1 | AA63: 2 | AB63: 5 | AC63: 2 | AD63: 150 | AE63: 250 | AG63: 2 | AH63: 5 | AI63: 2 | AJ63: 50 | AK63: 150
I64: 1 | J64: 1 | K64: 1 | L64: 2 | M64: 5 | N64: 3 | O64: 1050 | P64: 1150 | R64: 1 | S64: 1 | T64: 2 | U64: 5 | V64: 3 | W64: 250 | X64: 350 | Z64: 1 | AA64: 2 | AB64: 5 | AC64: 3 | AD64: 150 | AE64: 250 | AG64: 2 | AH64: 5 | AI64: 3 | AJ64: 50 | AK64: 150
I65: 1 | J65: 1 | K65: 1 | L65: 2 | M65: 5 | N65: 4 | O65: 1050 | P65: 1150 | R65: 1 | S65: 1 | T65: 2 | U65: 5 | V65: 4 | W65: 250 | X65: 350 | Z65: 1 | AA65: 2 | AB65: 5 | AC65: 4 | AD65: 150 | AE65: 250 | AG65: 2 | AH65: 5 | AI65: 4 | AJ65: 50 | AK65: 150
I66: 1 | J66: 1 | K66: 1 | L66: 2 | M66: 5 | N66: 5 | O66: 1100 | P66: 1200 | R66: 1 | S66: 1 | T66: 2 | U66: 5 | V66: 5 | W66: =calculateScore(R66,S66,T66,U66,V66,0) -> 300 | X66: 400 | Z66: 1 | AA66: 2 | AB66: 5 | AC66: 5 | AD66: 200 | AE66: 300 | AG66: 2 | AH66: 5 | AI66: 5 | AJ66: 100 | AK66: =IF(AJ66=0,IF($C$2= "Y",-500,0), $A$2+AJ66) -> 200
I67: 1 | J67: 1 | K67: 1 | L67: 2 | M67: 5 | N67: 6 | O67: =calculateScore(I67,J67,K67,L67,M67,N67) -> 1050 | P67: =IF(O67=0,IF($C$2= "Y",-500,0),$A$2+O67) -> 1150 | R67: 1 | S67: 1 | T67: 2 | U67: 5 | V67: 6 | W67: 250 | X67: =IF(W67=0,IF($C$2= "Y",-500,0), $A$2+W67) -> 350 | Z67: 1 | AA67: 2 | AB67: 5 | AC67: 6 | AD67: =calculateScore(Z67,AA67,AB67,AC67,0,0) -> 150 | AE67: =IF(AD67=0,IF($C$2= "Y",-500,0), $A$2+AD67) -> 250 | AG67: 2 | AH67: 5 | AI67: 6 | AJ67: =calculateScore(AG67,AH67,AI67,0,0,0) -> 50 | AK67: =IF(AJ67=0,IF($C$2= "Y",-500,0), $A$2+AJ67) -> 150
I68: 1 | J68: 1 | K68: 1 | L68: 2 | M68: 6 | N68: 1 | O68: 2000 | P68: 2100 | R68: 1 | S68: 1 | T68: 2 | U68: 6 | V68: 1 | W68: 1000 | X68: 1100 | Z68: 1 | AA68: 2 | AB68: 6 | AC68: 1 | AD68: 200 | AE68: 300 | AG68: 2 | AH68: 6 | AI68: 1 | AJ68: 100 | AK68: 200
I69: 1 | J69: 1 | K69: 1 | L69: 2 | M69: 6 | N69: 2 | O69: 1000 | P69: 1100 | R69: 1 | S69: 1 | T69: 2 | U69: 6 | V69: 2 | W69: 200 | X69: 300 | Z69: 1 | AA69: 2 | AB69: 6 | AC69: 2 | AD69: 100 | AE69: 200 | AG69: 2 | AH69: 6 | AI69: 2 | AJ69: 0 | AK69: 0
I70: 1 | J70: 1 | K70: 1 | L70: 2 | M70: 6 | N70: 3 | O70: 1000 | P70: 1100 | R70: 1 | S70: 1 | T70: 2 | U70: 6 | V70: 3 | W70: 200 | X70: 300 | Z70: 1 | AA70: 2 | AB70: 6 | AC70: 3 | AD70: 100 | AE70: 200 | AG70: 2 | AH70: 6 | AI70: 3 | AJ70: 0 | AK70: 0
I71: 1 | J71: 1 | K71: 1 | L71: 2 | M71: 6 | N71: 4 | O71: 1000 | P71: 1100 | R71: 1 | S71: 1 | T71: 2 | U71: 6 | V71: 4 | W71: 200 | X71: 300 | Z71: 1 | AA71: 2 | AB71: 6 | AC71: 4 | AD71: 100 | AE71: 200 | AG71: 2 | AH71: 6 | AI71: 4 | AJ71: 0 | AK71: 0
I72: 1 | J72: 1 | K72: 1 | L72: 2 | M72: 6 | N72: 5 | O72: 1050 | P72: 1150 | R72: 1 | S72: 1 | T72: 2 | U72: 6 | V72: 5 | W72: 250 | X72: 350 | Z72: 1 | AA72: 2 | AB72: 6 | AC72: 5 | AD72: 150 | AE72: 250 | AG72: 2 | AH72: 6 | AI72: 5 | AJ72: 50 | AK72: 150
I73: 1 | J73: 1 | K73: 1 | L73: 2 | M73: 6 | N73: 6 | O73: 1000 | P73: 1100 | R73: 1 | S73: 1 | T73: 2 | U73: 6 | V73: 6 | W73: 200 | X73: 300 | Z73: 1 | AA73: 2 | AB73: 6 | AC73: 6 | AD73: 100 | AE73: 200 | AG73: 2 | AH73: 6 | AI73: 6 | AJ73: 0 | AK73: 0
I74: 1 | J74: 1 | K74: 1 | L74: 3 | M74: 1 | N74: 1 | O74: 3000 | P74: 3100 | R74: 1 | S74: 1 | T74: 3 | U74: 1 | V74: 1 | W74: 2000 | X74: 2100 | Z74: 1 | AA74: 3 | AB74: 1 | AC74: 1 | AD74: 1000 | AE74: 1100 | AG74: 3 | AH74: 1 | AI74: 1 | AJ74: 200 | AK74: =IF(AJ74=0,IF($C$2= "Y",-500,0), $A$2+AJ74) -> 300
I75: 1 | J75: 1 | K75: 1 | L75: 3 | M75: 1 | N75: 2 | O75: 2000 | P75: 2100 | R75: 1 | S75: 1 | T75: 3 | U75: 1 | V75: 2 | W75: 1000 | X75: 1100 | Z75: 1 | AA75: 3 | AB75: 1 | AC75: 2 | AD75: 200 | AE75: 300 | AG75: 3 | AH75: 1 | AI75: 2 | AJ75: 100 | AK75: 200
I76: 1 | J76: 1 | K76: 1 | L76: 3 | M76: 1 | N76: 3 | O76: 2000 | P76: 2100 | R76: 1 | S76: 1 | T76: 3 | U76: 1 | V76: 3 | W76: 1000 | X76: 1100 | Z76: 1 | AA76: 3 | AB76: 1 | AC76: 3 | AD76: 200 | AE76: 300 | AG76: 3 | AH76: 1 | AI76: 3 | AJ76: 100 | AK76: 200
I77: 1 | J77: 1 | K77: 1 | L77: 3 | M77: 1 | N77: 4 | O77: 2000 | P77: 2100 | R77: 1 | S77: 1 | T77: 3 | U77: 1 | V77: 4 | W77: 1000 | X77: 1100 | Z77: 1 | AA77: 3 | AB77: 1 | AC77: 4 | AD77: 200 | AE77: 300 | AG77: 3 | AH77: 1 | AI77: 4 | AJ77: 100 | AK77: 200
I78: 1 | J78: 1 | K78: 1 | L78: 3 | M78: 1 | N78: 5 | O78: 2050 | P78: 2150 | R78: 1 | S78: 1 | T78: 3 | U78: 1 | V78: 5 | W78: 1050 | X78: 1150 | Z78: 1 | AA78: 3 | AB78: 1 | AC78: 5 | AD78: 250 | AE78: 350 | AG78: 3 | AH78: 1 | AI78: 5 | AJ78: 150 | AK78: 250
I79: 1 | J79: 1 | K79: 1 | L79: 3 | M79: 1 | N79: 6 | O79: 2000 | P79: 2100 | R79: 1 | S79: 1 | T79: 3 | U79: 1 | V79: 6 | W79: 1000 | X79: 1100 | Z79: 1 | AA79: 3 | AB79: 1 | AC79: 6 | AD79: 200 | AE79: 300 | AG79: 3 | AH79: 1 | AI79: 6 | AJ79: 100 | AK79: 200
I80: 1 | J80: 1 | K80: 1 | L80: 3 | M80: 2 | N80: 1 | O80: 2000 | P80: 2100 | R80: 1 | S80: 1 | T80: 3 | U80: 2 | V80: 1 | W80: 1000 | X80: 1100 | Z80: 1 | AA80: 3 | AB80: 2 | AC80: 1 | AD80: 200 | AE80: 300 | AG80: 3 | AH80: 2 | AI80: 1 | AJ80: 100 | AK80: 200
I81: 1 | J81: 1 | K81: 1 | L81: 3 | M81: 2 | N81: 2 | O81: 1000 | P81: 1100 | R81: 1 | S81: 1 | T81: 3 | U81: 2 | V81: 2 | W81: 200 | X81: 300 | Z81: 1 | AA81: 3 | AB81: 2 | AC81: 2 | AD81: 100 | AE81: 200 | AG81: 3 | AH81: 2 | AI81: 2 | AJ81: 0 | AK81: 0
I82: 1 | J82: 1 | K82: 1 | L82: 3 | M82: 2 | N82: 3 | O82: 1000 | P82: 1100 | R82: 1 | S82: 1 | T82: 3 | U82: 2 | V82: 3 | W82: 200 | X82: 300 | Z82: 1 | AA82: 3 | AB82: 2 | AC82: 3 | AD82: 100 | AE82: 200 | AG82: 3 | AH82: 2 | AI82: 3 | AJ82: 0 | AK82: 0
I83: 1 | J83: 1 | K83: 1 | L83: 3 | M83: 2 | N83: 4 | O83: 1000 | P83: 1100 | R83: 1 | S83: 1 | T83: 3 | U83: 2 | V83: 4 | W83: 200 | X83: 300 | Z83: 1 | AA83: 3 | AB83: 2 | AC83: 4 | AD83: 100 | AE83: 200 | AG83: 3 | AH83: 2 | AI83: 4 | AJ83: 0 | AK83: 0
I84: 1 | J84: 1 | K84: 1 | L84: 3 | M84: 2 | N84: 5 | O84: 1050 | P84: 1150 | R84: 1 | S84: 1 | T84: 3 | U84: 2 | V84: 5 | W84: 250 | X84: 350 | Z84: 1 | AA84: 3 | AB84: 2 | AC84: 5 | AD84: 150 | AE84: 250 | AG84: 3 | AH84: 2 | AI84: 5 | AJ84: 50 | AK84: 150
I85: 1 | J85: 1 | K85: 1 | L85: 3 | M85: 2 | N85: 6 | O85: 1000 | P85: 1100 | R85: 1 | S85: 1 | T85: 3 | U85: 2 | V85: 6 | W85: 200 | X85: 300 | Z85: 1 | AA85: 3 | AB85: 2 | AC85: 6 | AD85: 100 | AE85: 200 | AG85: 3 | AH85: 2 | AI85: 6 | AJ85: 0 | AK85: 0
I86: 1 | J86: 1 | K86: 1 | L86: 3 | M86: 3 | N86: 1 | O86: 2000 | P86: 2100 | R86: 1 | S86: 1 | T86: 3 | U86: 3 | V86: 1 | W86: 1000 | X86: 1100 | Z86: 1 | AA86: 3 | AB86: 3 | AC86: 1 | AD86: 200 | AE86: 300 | AG86: 3 | AH86: 3 | AI86: 1 | AJ86: 100 | AK86: 200
I87: 1 | J87: 1 | K87: 1 | L87: 3 | M87: 3 | N87: 2 | O87: 1000 | P87: 1100 | R87: 1 | S87: 1 | T87: 3 | U87: 3 | V87: 2 | W87: 200 | X87: 300 | Z87: 1 | AA87: 3 | AB87: 3 | AC87: 2 | AD87: 100 | AE87: 200 | AG87: 3 | AH87: 3 | AI87: 2 | AJ87: 0 | AK87: 0
I88: 1 | J88: 1 | K88: 1 | L88: 3 | M88: 3 | N88: 3 | O88: 1300 | P88: 1400 | R88: 1 | S88: 1 | T88: 3 | U88: 3 | V88: 3 | W88: 500 | X88: 600 | Z88: 1 | AA88: 3 | AB88: 3 | AC88: 3 | AD88: 400 | AE88: 500 | AG88: 3 | AH88: 3 | AI88: 3 | AJ88: 300 | AK88: =IF(AJ88=0,IF($C$2= "Y",-500,0), $A$2+AJ88+AVERAGE(O2:O46657)-(1080/46656)*($A$2+AS2)) -> 774.6784979
I89: 1 | J89: 1 | K89: 1 | L89: 3 | M89: 3 | N89: 4 | O89: 1000 | P89: 1100 | R89: 1 | S89: 1 | T89: 3 | U89: 3 | V89: 4 | W89: 200 | X89: 300 | Z89: 1 | AA89: 3 | AB89: 3 | AC89: 4 | AD89: 100 | AE89: 200 | AG89: 3 | AH89: 3 | AI89: 4 | AJ89: 0 | AK89: 0
I90: 1 | J90: 1 | K90: 1 | L90: 3 | M90: 3 | N90: 5 | O90: 1050 | P90: 1150 | R90: 1 | S90: 1 | T90: 3 | U90: 3 | V90: 5 | W90: 250 | X90: 350 | Z90: 1 | AA90: 3 | AB90: 3 | AC90: 5 | AD90: 150 | AE90: 250 | AG90: 3 | AH90: 3 | AI90: 5 | AJ90: 50 | AK90: 150
I91: 1 | J91: 1 | K91: 1 | L91: 3 | M91: 3 | N91: 6 | O91: 1000 | P91: 1100 | R91: 1 | S91: 1 | T91: 3 | U91: 3 | V91: 6 | W91: 200 | X91: 300 | Z91: 1 | AA91: 3 | AB91: 3 | AC91: 6 | AD91: 100 | AE91: 200 | AG91: 3 | AH91: 3 | AI91: 6 | AJ91: 0 | AK91: 0
I92: 1 | J92: 1 | K92: 1 | L92: 3 | M92: 4 | N92: 1 | O92: 2000 | P92: 2100 | R92: 1 | S92: 1 | T92: 3 | U92: 4 | V92: 1 | W92: 1000 | X92: 1100 | Z92: 1 | AA92: 3 | AB92: 4 | AC92: 1 | AD92: 200 | AE92: 300 | AG92: 3 | AH92: 4 | AI92: 1 | AJ92: 100 | AK92: 200
I93: 1 | J93: 1 | K93: 1 | L93: 3 | M93: 4 | N93: 2 | O93: 1000 | P93: 1100 | R93: 1 | S93: 1 | T93: 3 | U93: 4 | V93: 2 | W93: 200 | X93: 300 | Z93: 1 | AA93: 3 | AB93: 4 | AC93: 2 | AD93: 100 | AE93: 200 | AG93: 3 | AH93: 4 | AI93: 2 | AJ93: 0 | AK93: 0
I94: 1 | J94: 1 | K94: 1 | L94: 3 | M94: 4 | N94: 3 | O94: 1000 | P94: 1100 | R94: 1 | S94: 1 | T94: 3 | U94: 4 | V94: 3 | W94: 200 | X94: 300 | Z94: 1 | AA94: 3 | AB94: 4 | AC94: 3 | AD94: 100 | AE94: 200 | AG94: 3 | AH94: 4 | AI94: 3 | AJ94: 0 | AK94: 0
I95: 1 | J95: 1 | K95: 1 | L95: 3 | M95: 4 | N95: 4 | O95: 1000 | P95: 1100 | R95: 1 | S95: 1 | T95: 3 | U95: 4 | V95: 4 | W95: 200 | X95: 300 | Z95: 1 | AA95: 3 | AB95: 4 | AC95: 4 | AD95: 100 | AE95: 200 | AG95: 3 | AH95: 4 | AI95: 4 | AJ95: 0 | AK95: 0
I96: 1 | J96: 1 | K96: 1 | L96: 3 | M96: 4 | N96: 5 | O96: 1050 | P96: 1150 | R96: 1 | S96: 1 | T96: 3 | U96: 4 | V96: 5 | W96: 250 | X96: 350 | Z96: 1 | AA96: 3 | AB96: 4 | AC96: 5 | AD96: 150 | AE96: 250 | AG96: 3 | AH96: 4 | AI96: 5 | AJ96: 50 | AK96: 150
I97: 1 | J97: 1 | K97: 1 | L97: 3 | M97: 4 | N97: 6 | O97: 1000 | P97: 1100 | R97: 1 | S97: 1 | T97: 3 | U97: 4 | V97: 6 | W97: 200 | X97: 300 | Z97: 1 | AA97: 3 | AB97: 4 | AC97: 6 | AD97: 100 | AE97: 200 | AG97: 3 | AH97: 4 | AI97: 6 | AJ97: 0 | AK97: 0
I98: 1 | J98: 1 | K98: 1 | L98: 3 | M98: 5 | N98: 1 | O98: 2050 | P98: 2150 | R98: 1 | S98: 1 | T98: 3 | U98: 5 | V98: 1 | W98: 1050 | X98: 1150 | Z98: 1 | AA98: 3 | AB98: 5 | AC98: 1 | AD98: 250 | AE98: 350 | AG98: 3 | AH98: 5 | AI98: 1 | AJ98: 150 | AK98: 250
I99: 1 | J99: 1 | K99: 1 | L99: 3 | M99: 5 | N99: 2 | O99: 1050 | P99: 1150 | R99: 1 | S99: 1 | T99: 3 | U99: 5 | V99: 2 | W99: 250 | X99: 350 | Z99: 1 | AA99: 3 | AB99: 5 | AC99: 2 | AD99: 150 | AE99: 250 | AG99: 3 | AH99: 5 | AI99: 2 | AJ99: 50 | AK99: 150
I100: 1 | J100: 1 | K100: 1 | L100: 3 | M100: 5 | N100: 3 | O100: 1050 | P100: 1150 | R100: 1 | S100: 1 | T100: 3 | U100: 5 | V100: 3 | W100: 250 | X100: 350 | Z100: 1 | AA100: 3 | AB100: 5 | AC100: 3 | AD100: 150 | AE100: 250 | AG100: 3 | AH100: 5 | AI100: 3 | AJ100: 50 | AK100: 150
I101: 1 | J101: 1 | K101: 1 | L101: 3 | M101: 5 | N101: 4 | O101: 1050 | P101: 1150 | R101: 1 | S101: 1 | T101: 3 | U101: 5 | V101: 4 | W101: 250 | X101: 350 | Z101: 1 | AA101: 3 | AB101: 5 | AC101: 4 | AD101: 150 | AE101: 250 | AG101: 3 | AH101: 5 | AI101: 4 | AJ101: 50 | AK101: 150
I102: 1 | J102: 1 | K102: 1 | L102: 3 | M102: 5 | N102: 5 | O102: 1100 | P102: 1200 | R102: 1 | S102: 1 | T102: 3 | U102: 5 | V102: 5 | W102: 300 | X102: 400 | Z102: 1 | AA102: 3 | AB102: 5 | AC102: 5 | AD102: 200 | AE102: 300 | AG102: 3 | AH102: 5 | AI102: 5 | AJ102: 100 | AK102: 200
I103: 1 | J103: 1 | K103: 1 | L103: 3 | M103: 5 | N103: 6 | O103: 1050 | P103: 1150 | R103: 1 | S103: 1 | T103: 3 | U103: 5 | V103: 6 | W103: 250 | X103: 350 | Z103: 1 | AA103: 3 | AB103: 5 | AC103: 6 | AD103: 150 | AE103: 250 | AG103: 3 | AH103: 5 | AI103: 6 | AJ103: 50 | AK103: 150
I104: 1 | J104: 1 | K104: 1 | L104: 3 | M104: 6 | N104: 1 | O104: 2000 | P104: 2100 | R104: 1 | S104: 1 | T104: 3 | U104: 6 | V104: 1 | W104: 1000 | X104: 1100 | Z104: 1 | AA104: 3 | AB104: 6 | AC104: 1 | AD104: 200 | AE104: 300 | AG104: 3 | AH104: 6 | AI104: 1 | AJ104: 100 | AK104: 200
I105: 1 | J105: 1 | K105: 1 | L105: 3 | M105: 6 | N105: 2 | O105: 1000 | P105: 1100 | R105: 1 | S105: 1 | T105: 3 | U105: 6 | V105: 2 | W105: 200 | X105: 300 | Z105: 1 | AA105: 3 | AB105: 6 | AC105: 2 | AD105: 100 | AE105: 200 | AG105: 3 | AH105: 6 | AI105: 2 | AJ105: 0 | AK105: 0
I106: 1 | J106: 1 | K106: 1 | L106: 3 | M106: 6 | N106: 3 | O106: 1000 | P106: 1100 | R106: 1 | S106: 1 | T106: 3 | U106: 6 | V106: 3 | W106: 200 | X106: 300 | Z106: 1 | AA106: 3 | AB106: 6 | AC106: 3 | AD106: 100 | AE106: 200 | AG106: 3 | AH106: 6 | AI106: 3 | AJ106: 0 | AK106: 0
I107: 1 | J107: 1 | K107: 1 | L107: 3 | M107: 6 | N107: 4 | O107: 1000 | P107: 1100 | R107: 1 | S107: 1 | T107: 3 | U107: 6 | V107: 4 | W107: 200 | X107: 300 | Z107: 1 | AA107: 3 | AB107: 6 | AC107: 4 | AD107: 100 | AE107: 200 | AG107: 3 | AH107: 6 | AI107: 4 | AJ107: 0 | AK107: 0
I108: 1 | J108: 1 | K108: 1 | L108: 3 | M108: 6 | N108: 5 | O108: 1050 | P108: 1150 | R108: 1 | S108: 1 | T108: 3 | U108: 6 | V108: 5 | W108: 250 | X108: 350 | Z108: 1 | AA108: 3 | AB108: 6 | AC108: 5 | AD108: 150 | AE108: 250 | AG108: 3 | AH108: 6 | AI108: 5 | AJ108: 50 | AK108: 150
I109: 1 | J109: 1 | K109: 1 | L109: 3 | M109: 6 | N109: 6 | O109: 1000 | P109: 1100 | R109: 1 | S109: 1 | T109: 3 | U109: 6 | V109: 6 | W109: 200 | X109: 300 | Z109: 1 | AA109: 3 | AB109: 6 | AC109: 6 | AD109: 100 | AE109: 200 | AG109: 3 | AH109: 6 | AI109: 6 | AJ109: 0 | AK109: 0
I110: 1 | J110: 1 | K110: 1 | L110: 4 | M110: 1 | N110: 1 | O110: 3000 | P110: 3100 | R110: 1 | S110: 1 | T110: 4 | U110: 1 | V110: 1 | W110: 2000 | X110: 2100 | Z110: 1 | AA110: 4 | AB110: 1 | AC110: 1 | AD110: 1000 | AE110: 1100 | AG110: 4 | AH110: 1 | AI110: 1 | AJ110: 200 | AK110: 300
I111: 1 | J111: 1 | K111: 1 | L111: 4 | M111: 1 | N111: 2 | O111: 2000 | P111: 2100 | R111: 1 | S111: 1 | T111: 4 | U111: 1 | V111: 2 | W111: 1000 | X111: 1100 | Z111: 1 | AA111: 4 | AB111: 1 | AC111: 2 | AD111: 200 | AE111: 300 | AG111: 4 | AH111: 1 | AI111: 2 | AJ111: 100 | AK111: 200
I112: 1 | J112: 1 | K112: 1 | L112: 4 | M112: 1 | N112: 3 | O112: 2000 | P112: 2100 | R112: 1 | S112: 1 | T112: 4 | U112: 1 | V112: 3 | W112: 1000 | X112: 1100 | Z112: 1 | AA112: 4 | AB112: 1 | AC112: 3 | AD112: 200 | AE112: 300 | AG112: 4 | AH112: 1 | AI112: 3 | AJ112: 100 | AK112: 200
I113: 1 | J113: 1 | K113: 1 | L113: 4 | M113: 1 | N113: 4 | O113: 2000 | P113: 2100 | R113: 1 | S113: 1 | T113: 4 | U113: 1 | V113: 4 | W113: 1000 | X113: 1100 | Z113: 1 | AA113: 4 | AB113: 1 | AC113: 4 | AD113: 200 | AE113: 300 | AG113: 4 | AH113: 1 | AI113: 4 | AJ113: 100 | AK113: 200
I114: 1 | J114: 1 | K114: 1 | L114: 4 | M114: 1 | N114: 5 | O114: 2050 | P114: 2150 | R114: 1 | S114: 1 | T114: 4 | U114: 1 | V114: 5 | W114: 1050 | X114: 1150 | Z114: 1 | AA114: 4 | AB114: 1 | AC114: 5 | AD114: 250 | AE114: 350 | AG114: 4 | AH114: 1 | AI114: 5 | AJ114: 150 | AK114: 250
I115: 1 | J115: 1 | K115: 1 | L115: 4 | M115: 1 | N115: 6 | O115: 2000 | P115: 2100 | R115: 1 | S115: 1 | T115: 4 | U115: 1 | V115: 6 | W115: 1000 | X115: 1100 | Z115: 1 | AA115: 4 | AB115: 1 | AC115: 6 | AD115: 200 | AE115: 300 | AG115: 4 | AH115: 1 | AI115: 6 | AJ115: 100 | AK115: 200
I116: 1 | J116: 1 | K116: 1 | L116: 4 | M116: 2 | N116: 1 | O116: 2000 | P116: 2100 | R116: 1 | S116: 1 | T116: 4 | U116: 2 | V116: 1 | W116: 1000 | X116: 1100 | Z116: 1 | AA116: 4 | AB116: 2 | AC116: 1 | AD116: 200 | AE116: 300 | AG116: 4 | AH116: 2 | AI116: 1 | AJ116: 100 | AK116: 200
I117: 1 | J117: 1 | K117: 1 | L117: 4 | M117: 2 | N117: 2 | O117: 1000 | P117: 1100 | R117: 1 | S117: 1 | T117: 4 | U117: 2 | V117: 2 | W117: 200 | X117: 300 | Z117: 1 | AA117: 4 | AB117: 2 | AC117: 2 | AD117: 100 | AE117: 200 | AG117: 4 | AH117: 2 | AI117: 2 | AJ117: 0 | AK117: 0
I118: 1 | J118: 1 | K118: 1 | L118: 4 | M118: 2 | N118: 3 | O118: 1000 | P118: 1100 | R118: 1 | S118: 1 | T118: 4 | U118: 2 | V118: 3 | W118: 200 | X118: 300 | Z118: 1 | AA118: 4 | AB118: 2 | AC118: 3 | AD118: 100 | AE118: 200 | AG118: 4 | AH118: 2 | AI118: 3 | AJ118: 0 | AK118: 0
I119: 1 | J119: 1 | K119: 1 | L119: 4 | M119: 2 | N119: 4 | O119: 1000 | P119: 1100 | R119: 1 | S119: 1 | T119: 4 | U119: 2 | V119: 4 | W119: 200 | X119: 300 | Z119: 1 | AA119: 4 | AB119: 2 | AC119: 4 | AD119: 100 | AE119: 200 | AG119: 4 | AH119: 2 | AI119: 4 | AJ119: 0 | AK119: 0
I120: 1 | J120: 1 | K120: 1 | L120: 4 | M120: 2 | N120: 5 | O120: 1050 | P120: 1150 | R120: 1 | S120: 1 | T120: 4 | U120: 2 | V120: 5 | W120: 250 | X120: 350 | Z120: 1 | AA120: 4 | AB120: 2 | AC120: 5 | AD120: 150 | AE120: 250 | AG120: 4 | AH120: 2 | AI120: 5 | AJ120: 50 | AK120: 150
I121: 1 | J121: 1 | K121: 1 | L121: 4 | M121: 2 | N121: 6 | O121: 1000 | P121: 1100 | R121: 1 | S121: 1 | T121: 4 | U121: 2 | V121: 6 | W121: 200 | X121: 300 | Z121: 1 | AA121: 4 | AB121: 2 | AC121: 6 | AD121: 100 | AE121: 200 | AG121: 4 | AH121: 2 | AI121: 6 | AJ121: 0 | AK121: 0
I122: 1 | J122: 1 | K122: 1 | L122: 4 | M122: 3 | N122: 1 | O122: 2000 | P122: 2100 | R122: 1 | S122: 1 | T122: 4 | U122: 3 | V122: 1 | W122: 1000 | X122: 1100 | Z122: 1 | AA122: 4 | AB122: 3 | AC122: 1 | AD122: 200 | AE122: 300 | AG122: 4 | AH122: 3 | AI122: 1 | AJ122: 100 | AK122: 200
I123: 1 | J123: 1 | K123: 1 | L123: 4 | M123: 3 | N123: 2 | O123: 1000 | P123: 1100 | R123: 1 | S123: 1 | T123: 4 | U123: 3 | V123: 2 | W123: 200 | X123: 300 | Z123: 1 | AA123: 4 | AB123: 3 | AC123: 2 | AD123: 100 | AE123: 200 | AG123: 4 | AH123: 3 | AI123: 2 | AJ123: 0 | AK123: 0
I124: 1 | J124: 1 | K124: 1 | L124: 4 | M124: 3 | N124: 3 | O124: 1000 | P124: 1100 | R124: 1 | S124: 1 | T124: 4 | U124: 3 | V124: 3 | W124: 200 | X124: 300 | Z124: 1 | AA124: 4 | AB124: 3 | AC124: 3 | AD124: 100 | AE124: 200 | AG124: 4 | AH124: 3 | AI124: 3 | AJ124: 0 | AK124: 0
I125: 1 | J125: 1 | K125: 1 | L125: 4 | M125: 3 | N125: 4 | O125: 1000 | P125: 1100 | R125: 1 | S125: 1 | T125: 4 | U125: 3 | V125: 4 | W125: 200 | X125: 300 | Z125: 1 | AA125: 4 | AB125: 3 | AC125: 4 | AD125: 100 | AE125: 200 | AG125: 4 | AH125: 3 | AI125: 4 | AJ125: 0 | AK125: 0
I126: 1 | J126: 1 | K126: 1 | L126: 4 | M126: 3 | N126: 5 | O126: 1050 | P126: 1150 | R126: 1 | S126: 1 | T126: 4 | U126: 3 | V126: 5 | W126: 250 | X126: 350 | Z126: 1 | AA126: 4 | AB126: 3 | AC126: 5 | AD126: 150 | AE126: 250 | AG126: 4 | AH126: 3 | AI126: 5 | AJ126: 50 | AK126: 150
I127: 1 | J127: 1 | K127: 1 | L127: 4 | M127: 3 | N127: 6 | O127: 1000 | P127: 1100 | R127: 1 | S127: 1 | T127: 4 | U127: 3 | V127: 6 | W127: 200 | X127: 300 | Z127: 1 | AA127: 4 | AB127: 3 | AC127: 6 | AD127: 100 | AE127: 200 | AG127: 4 | AH127: 3 | AI127: 6 | AJ127: 0 | AK127: 0
I128: 1 | J128: 1 | K128: 1 | L128: 4 | M128: 4 | N128: 1 | O128: 2000 | P128: 2100 | R128: 1 | S128: 1 | T128: 4 | U128: 4 | V128: 1 | W128: 1000 | X128: 1100 | Z128: 1 | AA128: 4 | AB128: 4 | AC128: 1 | AD128: 200 | AE128: 300 | AG128: 4 | AH128: 4 | AI128: 1 | AJ128: 100 | AK128: 200
I129: 1 | J129: 1 | K129: 1 | L129: 4 | M129: 4 | N129: 2 | O129: 1000 | P129: 1100 | R129: 1 | S129: 1 | T129: 4 | U129: 4 | V129: 2 | W129: 200 | X129: 300 | Z129: 1 | AA129: 4 | AB129: 4 | AC129: 2 | AD129: 100 | AE129: 200 | AG129: 4 | AH129: 4 | AI129: 2 | AJ129: 0 | AK129: 0
I130: 1 | J130: 1 | K130: 1 | L130: 4 | M130: 4 | N130: 3 | O130: 1000 | P130: 1100 | R130: 1 | S130: 1 | T130: 4 | U130: 4 | V130: 3 | W130: =calculateScore(R130,S130,T130,U130,V130,0) -> 200 | X130: 300 | Z130: 1 | AA130: 4 | AB130: 4 | AC130: 3 | AD130: 100 | AE130: 200 | AG130: 4 | AH130: 4 | AI130: 3 | AJ130: 0 | AK130: 0
I131: 1 | J131: 1 | K131: 1 | L131: 4 | M131: 4 | N131: 4 | O131: =calculateScore(I131,J131,K131,L131,M131,N131) -> 1400 | P131: =IF(O131=0,IF($C$2= "Y",-500,0),$A$2+O131) -> 1500 | R131: 1 | S131: 1 | T131: 4 | U131: 4 | V131: 4 | W131: 600 | X131: =IF(W131=0,IF($C$2= "Y",-500,0), $A$2+W131) -> 700 | Z131: 1 | AA131: 4 | AB131: 4 | AC131: 4 | AD131: =calculateScore(Z131,AA131,AB131,AC131,0,0) -> 500 | AE131: =IF(AD131=0,IF($C$2= "Y",-500,0), $A$2+AD131) -> 600 | AG131: 4 | AH131: 4 | AI131: 4 | AJ131: =calculateScore(AG131,AH131,AI131,0,0,0) -> 400 | AK131: =IF(AJ131=0,IF($C$2= "Y",-500,0), $A$2+AJ131+AVERAGE(O2:O46657)-(1080/46656)*($A$2+AS2)) -> 874.6784979
I132: 1 | J132: 1 | K132: 1 | L132: 4 | M132: 4 | N132: 5 | O132: 1050 | P132: 1150 | R132: 1 | S132: 1 | T132: 4 | U132: 4 | V132: 5 | W132: 250 | X132: 350 | Z132: 1 | AA132: 4 | AB132: 4 | AC132: 5 | AD132: 150 | AE132: 250 | AG132: 4 | AH132: 4 | AI132: 5 | AJ132: 50 | AK132: =IF(AJ132=0,IF($C$2= "Y",-500,0), $A$2+AJ132) -> 150
I133: 1 | J133: 1 | K133: 1 | L133: 4 | M133: 4 | N133: 6 | O133: 1000 | P133: 1100 | R133: 1 | S133: 1 | T133: 4 | U133: 4 | V133: 6 | W133: 200 | X133: 300 | Z133: 1 | AA133: 4 | AB133: 4 | AC133: 6 | AD133: 100 | AE133: 200 | AG133: 4 | AH133: 4 | AI133: 6 | AJ133: 0 | AK133: 0
I134: 1 | J134: 1 | K134: 1 | L134: 4 | M134: 5 | N134: 1 | O134: 2050 | P134: 2150 | R134: 1 | S134: 1 | T134: 4 | U134: 5 | V134: 1 | W134: 1050 | X134: 1150 | Z134: 1 | AA134: 4 | AB134: 5 | AC134: 1 | AD134: 250 | AE134: 350 | AG134: 4 | AH134: 5 | AI134: 1 | AJ134: 150 | AK134: 250
I135: 1 | J135: 1 | K135: 1 | L135: 4 | M135: 5 | N135: 2 | O135: 1050 | P135: 1150 | R135: 1 | S135: 1 | T135: 4 | U135: 5 | V135: 2 | W135: 250 | X135: 350 | Z135: 1 | AA135: 4 | AB135: 5 | AC135: 2 | AD135: 150 | AE135: 250 | AG135: 4 | AH135: 5 | AI135: 2 | AJ135: 50 | AK135: 150
I136: 1 | J136: 1 | K136: 1 | L136: 4 | M136: 5 | N136: 3 | O136: 1050 | P136: 1150 | R136: 1 | S136: 1 | T136: 4 | U136: 5 | V136: 3 | W136: 250 | X136: 350 | Z136: 1 | AA136: 4 | AB136: 5 | AC136: 3 | AD136: 150 | AE136: 250 | AG136: 4 | AH136: 5 | AI136: 3 | AJ136: 50 | AK136: 150
I137: 1 | J137: 1 | K137: 1 | L137: 4 | M137: 5 | N137: 4 | O137: 1050 | P137: 1150 | R137: 1 | S137: 1 | T137: 4 | U137: 5 | V137: 4 | W137: 250 | X137: 350 | Z137: 1 | AA137: 4 | AB137: 5 | AC137: 4 | AD137: 150 | AE137: 250 | AG137: 4 | AH137: 5 | AI137: 4 | AJ137: 50 | AK137: 150
I138: 1 | J138: 1 | K138: 1 | L138: 4 | M138: 5 | N138: 5 | O138: 1100 | P138: 1200 | R138: 1 | S138: 1 | T138: 4 | U138: 5 | V138: 5 | W138: 300 | X138: 400 | Z138: 1 | AA138: 4 | AB138: 5 | AC138: 5 | AD138: 200 | AE138: 300 | AG138: 4 | AH138: 5 | AI138: 5 | AJ138: 100 | AK138: 200
I139: 1 | J139: 1 | K139: 1 | L139: 4 | M139: 5 | N139: 6 | O139: 1050 | P139: 1150 | R139: 1 | S139: 1 | T139: 4 | U139: 5 | V139: 6 | W139: 250 | X139: 350 | Z139: 1 | AA139: 4 | AB139: 5 | AC139: 6 | AD139: 150 | AE139: 250 | AG139: 4 | AH139: 5 | AI139: 6 | AJ139: 50 | AK139: 150
I140: 1 | J140: 1 | K140: 1 | L140: 4 | M140: 6 | N140: 1 | O140: 2000 | P140: 2100 | R140: 1 | S140: 1 | T140: 4 | U140: 6 | V140: 1 | W140: 1000 | X140: 1100 | Z140: 1 | AA140: 4 | AB140: 6 | AC140: 1 | AD140: 200 | AE140: 300 | AG140: 4 | AH140: 6 | AI140: 1 | AJ140: 100 | AK140: 200
I141: 1 | J141: 1 | K141: 1 | L141: 4 | M141: 6 | N141: 2 | O141: 1000 | P141: 1100 | R141: 1 | S141: 1 | T141: 4 | U141: 6 | V141: 2 | W141: 200 | X141: 300 | Z141: 1 | AA141: 4 | AB141: 6 | AC141: 2 | AD141: 100 | AE141: 200 | AG141: 4 | AH141: 6 | AI141: 2 | AJ141: 0 | AK141: 0
I142: 1 | J142: 1 | K142: 1 | L142: 4 | M142: 6 | N142: 3 | O142: 1000 | P142: 1100 | R142: 1 | S142: 1 | T142: 4 | U142: 6 | V142: 3 | W142: 200 | X142: 300 | Z142: 1 | AA142: 4 | AB142: 6 | AC142: 3 | AD142: 100 | AE142: 200 | AG142: 4 | AH142: 6 | AI142: 3 | AJ142: 0 | AK142: 0
I143: 1 | J143: 1 | K143: 1 | L143: 4 | M143: 6 | N143: 4 | O143: 1000 | P143: 1100 | R143: 1 | S143: 1 | T143: 4 | U143: 6 | V143: 4 | W143: 200 | X143: 300 | Z143: 1 | AA143: 4 | AB143: 6 | AC143: 4 | AD143: 100 | AE143: 200 | AG143: 4 | AH143: 6 | AI143: 4 | AJ143: 0 | AK143: 0
I144: 1 | J144: 1 | K144: 1 | L144: 4 | M144: 6 | N144: 5 | O144: 1050 | P144: 1150 | R144: 1 | S144: 1 | T144: 4 | U144: 6 | V144: 5 | W144: 250 | X144: 350 | Z144: 1 | AA144: 4 | AB144: 6 | AC144: 5 | AD144: 150 | AE144: 250 | AG144: 4 | AH144: 6 | AI144: 5 | AJ144: 50 | AK144: 150
I145: 1 | J145: 1 | K145: 1 | L145: 4 | M145: 6 | N145: 6 | O145: 1000 | P145: 1100 | R145: 1 | S145: 1 | T145: 4 | U145: 6 | V145: 6 | W145: 200 | X145: 300 | Z145: 1 | AA145: 4 | AB145: 6 | AC145: 6 | AD145: 100 | AE145: 200 | AG145: 4 | AH145: 6 | AI145: 6 | AJ145: 0 | AK145: 0
I146: 1 | J146: 1 | K146: 1 | L146: 5 | M146: 1 | N146: 1 | O146: 3050 | P146: 3150 | R146: 1 | S146: 1 | T146: 5 | U146: 1 | V146: 1 | W146: 2050 | X146: 2150 | Z146: 1 | AA146: 5 | AB146: 1 | AC146: 1 | AD146: 1050 | AE146: 1150 | AG146: 5 | AH146: 1 | AI146: 1 | AJ146: 250 | AK146: =IF(AJ146=0,IF($C$2= "Y",-500,0), $A$2+AJ146+AVERAGE(O2:O46657)-(1080/46656)*($A$2+AS2)) -> 724.6784979
I147: 1 | J147: 1 | K147: 1 | L147: 5 | M147: 1 | N147: 2 | O147: 2050 | P147: 2150 | R147: 1 | S147: 1 | T147: 5 | U147: 1 | V147: 2 | W147: 1050 | X147: 1150 | Z147: 1 | AA147: 5 | AB147: 1 | AC147: 2 | AD147: 250 | AE147: 350 | AG147: 5 | AH147: 1 | AI147: 2 | AJ147: 150 | AK147: 250
I148: 1 | J148: 1 | K148: 1 | L148: 5 | M148: 1 | N148: 3 | O148: 2050 | P148: 2150 | R148: 1 | S148: 1 | T148: 5 | U148: 1 | V148: 3 | W148: 1050 | X148: 1150 | Z148: 1 | AA148: 5 | AB148: 1 | AC148: 3 | AD148: 250 | AE148: 350 | AG148: 5 | AH148: 1 | AI148: 3 | AJ148: 150 | AK148: 250
I149: 1 | J149: 1 | K149: 1 | L149: 5 | M149: 1 | N149: 4 | O149: 2050 | P149: 2150 | R149: 1 | S149: 1 | T149: 5 | U149: 1 | V149: 4 | W149: 1050 | X149: 1150 | Z149: 1 | AA149: 5 | AB149: 1 | AC149: 4 | AD149: 250 | AE149: 350 | AG149: 5 | AH149: 1 | AI149: 4 | AJ149: 150 | AK149: 250
I150: 1 | J150: 1 | K150: 1 | L150: 5 | M150: 1 | N150: 5 | O150: 2100 | P150: 2200 | R150: 1 | S150: 1 | T150: 5 | U150: 1 | V150: 5 | W150: 1100 | X150: 1200 | Z150: 1 | AA150: 5 | AB150: 1 | AC150: 5 | AD150: 300 | AE150: 400 | AG150: 5 | AH150: 1 | AI150: 5 | AJ150: 200 | AK150: =IF(AJ150=0,IF($C$2= "Y",-500,0), $A$2+AJ150+AVERAGE(O2:O46657)-(1080/46656)*($A$2+AS2)) -> 674.6784979
I151: 1 | J151: 1 | K151: 1 | L151: 5 | M151: 1 | N151: 6 | O151: 2050 | P151: 2150 | R151: 1 | S151: 1 | T151: 5 | U151: 1 | V151: 6 | W151: 1050 | X151: 1150 | Z151: 1 | AA151: 5 | AB151: 1 | AC151: 6 | AD151: 250 | AE151: 350 | AG151: 5 | AH151: 1 | AI151: 6 | AJ151: 150 | AK151: 250
I152: 1 | J152: 1 | K152: 1 | L152: 5 | M152: 2 | N152: 1 | O152: 2050 | P152: 2150 | R152: 1 | S152: 1 | T152: 5 | U152: 2 | V152: 1 | W152: 1050 | X152: 1150 | Z152: 1 | AA152: 5 | AB152: 2 | AC152: 1 | AD152: 250 | AE152: 350 | AG152: 5 | AH152: 2 | AI152: 1 | AJ152: 150 | AK152: 250
I153: 1 | J153: 1 | K153: 1 | L153: 5 | M153: 2 | N153: 2 | O153: 1050 | P153: 1150 | R153: 1 | S153: 1 | T153: 5 | U153: 2 | V153: 2 | W153: 250 | X153: 350 | Z153: 1 | AA153: 5 | AB153: 2 | AC153: 2 | AD153: 150 | AE153: 250 | AG153: 5 | AH153: 2 | AI153: 2 | AJ153: 50 | AK153: 150
I154: 1 | J154: 1 | K154: 1 | L154: 5 | M154: 2 | N154: 3 | O154: 1050 | P154: 1150 | R154: 1 | S154: 1 | T154: 5 | U154: 2 | V154: 3 | W154: 250 | X154: 350 | Z154: 1 | AA154: 5 | AB154: 2 | AC154: 3 | AD154: 150 | AE154: 250 | AG154: 5 | AH154: 2 | AI154: 3 | AJ154: 50 | AK154: 150
I155: 1 | J155: 1 | K155: 1 | L155: 5 | M155: 2 | N155: 4 | O155: 1050 | P155: 1150 | R155: 1 | S155: 1 | T155: 5 | U155: 2 | V155: 4 | W155: 250 | X155: 350 | Z155: 1 | AA155: 5 | AB155: 2 | AC155: 4 | AD155: 150 | AE155: 250 | AG155: 5 | AH155: 2 | AI155: 4 | AJ155: 50 | AK155: 150
I156: 1 | J156: 1 | K156: 1 | L156: 5 | M156: 2 | N156: 5 | O156: 1100 | P156: 1200 | R156: 1 | S156: 1 | T156: 5 | U156: 2 | V156: 5 | W156: 300 | X156: 400 | Z156: 1 | AA156: 5 | AB156: 2 | AC156: 5 | AD156: 200 | AE156: 300 | AG156: 5 | AH156: 2 | AI156: 5 | AJ156: 100 | AK156: 200
I157: 1 | J157: 1 | K157: 1 | L157: 5 | M157: 2 | N157: 6 | O157: 1050 | P157: 1150 | R157: 1 | S157: 1 | T157: 5 | U157: 2 | V157: 6 | W157: 250 | X157: 350 | Z157: 1 | AA157: 5 | AB157: 2 | AC157: 6 | AD157: 150 | AE157: 250 | AG157: 5 | AH157: 2 | AI157: 6 | AJ157: 50 | AK157: 150
I158: 1 | J158: 1 | K158: 1 | L158: 5 | M158: 3 | N158: 1 | O158: 2050 | P158: 2150 | R158: 1 | S158: 1 | T158: 5 | U158: 3 | V158: 1 | W158: 1050 | X158: 1150 | Z158: 1 | AA158: 5 | AB158: 3 | AC158: 1 | AD158: 250 | AE158: 350 | AG158: 5 | AH158: 3 | AI158: 1 | AJ158: 150 | AK158: 250
I159: 1 | J159: 1 | K159: 1 | L159: 5 | M159: 3 | N159: 2 | O159: 1050 | P159: 1150 | R159: 1 | S159: 1 | T159: 5 | U159: 3 | V159: 2 | W159: 250 | X159: 350 | Z159: 1 | AA159: 5 | AB159: 3 | AC159: 2 | AD159: 150 | AE159: 250 | AG159: 5 | AH159: 3 | AI159: 2 | AJ159: 50 | AK159: 150
I160: 1 | J160: 1 | K160: 1 | L160: 5 | M160: 3 | N160: 3 | O160: 1050 | P160: 1150 | R160: 1 | S160: 1 | T160: 5 | U160: 3 | V160: 3 | W160: 250 | X160: 350 | Z160: 1 | AA160: 5 | AB160: 3 | AC160: 3 | AD160: 150 | AE160: 250 | AG160: 5 | AH160: 3 | AI160: 3 | AJ160: 50 | AK160: 150
I161: 1 | J161: 1 | K161: 1 | L161: 5 | M161: 3 | N161: 4 | O161: 1050 | P161: 1150 | R161: 1 | S161: 1 | T161: 5 | U161: 3 | V161: 4 | W161: 250 | X161: 350 | Z161: 1 | AA161: 5 | AB161: 3 | AC161: 4 | AD161: 150 | AE161: 250 | AG161: 5 | AH161: 3 | AI161: 4 | AJ161: 50 | AK161: 150
I162: 1 | J162: 1 | K162: 1 | L162: 5 | M162: 3 | N162: 5 | O162: 1100 | P162: 1200 | R162: 1 | S162: 1 | T162: 5 | U162: 3 | V162: 5 | W162: 300 | X162: 400 | Z162: 1 | AA162: 5 | AB162: 3 | AC162: 5 | AD162: 200 | AE162: 300 | AG162: 5 | AH162: 3 | AI162: 5 | AJ162: 100 | AK162: 200
I163: 1 | J163: 1 | K163: 1 | L163: 5 | M163: 3 | N163: 6 | O163: 1050 | P163: 1150 | R163: 1 | S163: 1 | T163: 5 | U163: 3 | V163: 6 | W163: 250 | X163: 350 | Z163: 1 | AA163: 5 | AB163: 3 | AC163: 6 | AD163: 150 | AE163: 250 | AG163: 5 | AH163: 3 | AI163: 6 | AJ163: 50 | AK163: 150
I164: 1 | J164: 1 | K164: 1 | L164: 5 | M164: 4 | N164: 1 | O164: 2050 | P164: 2150 | R164: 1 | S164: 1 | T164: 5 | U164: 4 | V164: 1 | W164: 1050 | X164: 1150 | Z164: 1 | AA164: 5 | AB164: 4 | AC164: 1 | AD164: 250 | AE164: 350 | AG164: 5 | AH164: 4 | AI164: 1 | AJ164: 150 | AK164: 250
I165: 1 | J165: 1 | K165: 1 | L165: 5 | M165: 4 | N165: 2 | O165: 1050 | P165: 1150 | R165: 1 | S165: 1 | T165: 5 | U165: 4 | V165: 2 | W165: 250 | X165: 350 | Z165: 1 | AA165: 5 | AB165: 4 | AC165: 2 | AD165: 150 | AE165: 250 | AG165: 5 | AH165: 4 | AI165: 2 | AJ165: 50 | AK165: 150
I166: 1 | J166: 1 | K166: 1 | L166: 5 | M166: 4 | N166: 3 | O166: 1050 | P166: 1150 | R166: 1 | S166: 1 | T166: 5 | U166: 4 | V166: 3 | W166: 250 | X166: 350 | Z166: 1 | AA166: 5 | AB166: 4 | AC166: 3 | AD166: 150 | AE166: 250 | AG166: 5 | AH166: 4 | AI166: 3 | AJ166: 50 | AK166: 150
I167: 1 | J167: 1 | K167: 1 | L167: 5 | M167: 4 | N167: 4 | O167: 1050 | P167: 1150 | R167: 1 | S167: 1 | T167: 5 | U167: 4 | V167: 4 | W167: 250 | X167: 350 | Z167: 1 | AA167: 5 | AB167: 4 | AC167: 4 | AD167: 150 | AE167: 250 | AG167: 5 | AH167: 4 | AI167: 4 | AJ167: 50 | AK167: 150
I168: 1 | J168: 1 | K168: 1 | L168: 5 | M168: 4 | N168: 5 | O168: 1100 | P168: 1200 | R168: 1 | S168: 1 | T168: 5 | U168: 4 | V168: 5 | W168: 300 | X168: 400 | Z168: 1 | AA168: 5 | AB168: 4 | AC168: 5 | AD168: 200 | AE168: 300 | AG168: 5 | AH168: 4 | AI168: 5 | AJ168: 100 | AK168: 200
I169: 1 | J169: 1 | K169: 1 | L169: 5 | M169: 4 | N169: 6 | O169: 1050 | P169: 1150 | R169: 1 | S169: 1 | T169: 5 | U169: 4 | V169: 6 | W169: 250 | X169: 350 | Z169: 1 | AA169: 5 | AB169: 4 | AC169: 6 | AD169: 150 | AE169: 250 | AG169: 5 | AH169: 4 | AI169: 6 | AJ169: 50 | AK169: 150
I170: 1 | J170: 1 | K170: 1 | L170: 5 | M170: 5 | N170: 1 | O170: 2100 | P170: 2200 | R170: 1 | S170: 1 | T170: 5 | U170: 5 | V170: 1 | W170: 1100 | X170: 1200 | Z170: 1 | AA170: 5 | AB170: 5 | AC170: 1 | AD170: 300 | AE170: 400 | AG170: 5 | AH170: 5 | AI170: 1 | AJ170: 200 | AK170: =IF(AJ170=0,IF($C$2= "Y",-500,0), $A$2+AJ170+AVERAGE(O2:O46657)-(1080/46656)*($A$2+AS2)) -> 674.6784979
I171: 1 | J171: 1 | K171: 1 | L171: 5 | M171: 5 | N171: 2 | O171: 1100 | P171: 1200 | R171: 1 | S171: 1 | T171: 5 | U171: 5 | V171: 2 | W171: 300 | X171: 400 | Z171: 1 | AA171: 5 | AB171: 5 | AC171: 2 | AD171: 200 | AE171: 300 | AG171: 5 | AH171: 5 | AI171: 2 | AJ171: 100 | AK171: 200
I172: 1 | J172: 1 | K172: 1 | L172: 5 | M172: 5 | N172: 3 | O172: 1100 | P172: 1200 | R172: 1 | S172: 1 | T172: 5 | U172: 5 | V172: 3 | W172: 300 | X172: 400 | Z172: 1 | AA172: 5 | AB172: 5 | AC172: 3 | AD172: 200 | AE172: 300 | AG172: 5 | AH172: 5 | AI172: 3 | AJ172: 100 | AK172: 200
I173: 1 | J173: 1 | K173: 1 | L173: 5 | M173: 5 | N173: 4 | O173: 1100 | P173: 1200 | R173: 1 | S173: 1 | T173: 5 | U173: 5 | V173: 4 | W173: 300 | X173: 400 | Z173: 1 | AA173: 5 | AB173: 5 | AC173: 4 | AD173: 200 | AE173: 300 | AG173: 5 | AH173: 5 | AI173: 4 | AJ173: 100 | AK173: 200
I174: 1 | J174: 1 | K174: 1 | L174: 5 | M174: 5 | N174: 5 | O174: 1500 | P174: 1600 | R174: 1 | S174: 1 | T174: 5 | U174: 5 | V174: 5 | W174: 700 | X174: 800 | Z174: 1 | AA174: 5 | AB174: 5 | AC174: 5 | AD174: 600 | AE174: 700 | AG174: 5 | AH174: 5 | AI174: 5 | AJ174: 500 | AK174: =IF(AJ174=0,IF($C$2= "Y",-500,0), $A$2+AJ174+AVERAGE(O2:O46657)-(1080/46656)*($A$2+AS2)) -> 974.6784979
I175: 1 | J175: 1 | K175: 1 | L175: 5 | M175: 5 | N175: 6 | O175: 1100 | P175: 1200 | R175: 1 | S175: 1 | T175: 5 | U175: 5 | V175: 6 | W175: 300 | X175: 400 | Z175: 1 | AA175: 5 | AB175: 5 | AC175: 6 | AD175: 200 | AE175: 300 | AG175: 5 | AH175: 5 | AI175: 6 | AJ175: 100 | AK175: 200
I176: 1 | J176: 1 | K176: 1 | L176: 5 | M176: 6 | N176: 1 | O176: 2050 | P176: 2150 | R176: 1 | S176: 1 | T176: 5 | U176: 6 | V176: 1 | W176: 1050 | X176: 1150 | Z176: 1 | AA176: 5 | AB176: 6 | AC176: 1 | AD176: 250 | AE176: 350 | AG176: 5 | AH176: 6 | AI176: 1 | AJ176: 150 | AK176: 250
I177: 1 | J177: 1 | K177: 1 | L177: 5 | M177: 6 | N177: 2 | O177: 1050 | P177: 1150 | R177: 1 | S177: 1 | T177: 5 | U177: 6 | V177: 2 | W177: 250 | X177: 350 | Z177: 1 | AA177: 5 | AB177: 6 | AC177: 2 | AD177: 150 | AE177: 250 | AG177: 5 | AH177: 6 | AI177: 2 | AJ177: 50 | AK177: 150
I178: 1 | J178: 1 | K178: 1 | L178: 5 | M178: 6 | N178: 3 | O178: 1050 | P178: 1150 | R178: 1 | S178: 1 | T178: 5 | U178: 6 | V178: 3 | W178: 250 | X178: 350 | Z178: 1 | AA178: 5 | AB178: 6 | AC178: 3 | AD178: 150 | AE178: 250 | AG178: 5 | AH178: 6 | AI178: 3 | AJ178: 50 | AK178: 150
I179: 1 | J179: 1 | K179: 1 | L179: 5 | M179: 6 | N179: 4 | O179: 1050 | P179: 1150 | R179: 1 | S179: 1 | T179: 5 | U179: 6 | V179: 4 | W179: 250 | X179: 350 | Z179: 1 | AA179: 5 | AB179: 6 | AC179: 4 | AD179: 150 | AE179: 250 | AG179: 5 | AH179: 6 | AI179: 4 | AJ179: 50 | AK179: 150
I180: 1 | J180: 1 | K180: 1 | L180: 5 | M180: 6 | N180: 5 | O180: 1100 | P180: 1200 | R180: 1 | S180: 1 | T180: 5 | U180: 6 | V180: 5 | W180: 300 | X180: 400 | Z180: 1 | AA180: 5 | AB180: 6 | AC180: 5 | AD180: 200 | AE180: 300 | AG180: 5 | AH180: 6 | AI180: 5 | AJ180: 100 | AK180: 200
I181: 1 | J181: 1 | K181: 1 | L181: 5 | M181: 6 | N181: 6 | O181: 1050 | P181: 1150 | R181: 1 | S181: 1 | T181: 5 | U181: 6 | V181: 6 | W181: 250 | X181: 350 | Z181: 1 | AA181: 5 | AB181: 6 | AC181: 6 | AD181: 150 | AE181: 250 | AG181: 5 | AH181: 6 | AI181: 6 | AJ181: 50 | AK181: 150
I182: 1 | J182: 1 | K182: 1 | L182: 6 | M182: 1 | N182: 1 | O182: 3000 | P182: 3100 | R182: 1 | S182: 1 | T182: 6 | U182: 1 | V182: 1 | W182: 2000 | X182: 2100 | Z182: 1 | AA182: 6 | AB182: 1 | AC182: 1 | AD182: 1000 | AE182: 1100 | AG182: 6 | AH182: 1 | AI182: 1 | AJ182: 200 | AK182: 300
I183: 1 | J183: 1 | K183: 1 | L183: 6 | M183: 1 | N183: 2 | O183: 2000 | P183: 2100 | R183: 1 | S183: 1 | T183: 6 | U183: 1 | V183: 2 | W183: 1000 | X183: 1100 | Z183: 1 | AA183: 6 | AB183: 1 | AC183: 2 | AD183: 200 | AE183: 300 | AG183: 6 | AH183: 1 | AI183: 2 | AJ183: 100 | AK183: 200
I184: 1 | J184: 1 | K184: 1 | L184: 6 | M184: 1 | N184: 3 | O184: 2000 | P184: 2100 | R184: 1 | S184: 1 | T184: 6 | U184: 1 | V184: 3 | W184: 1000 | X184: 1100 | Z184: 1 | AA184: 6 | AB184: 1 | AC184: 3 | AD184: 200 | AE184: 300 | AG184: 6 | AH184: 1 | AI184: 3 | AJ184: 100 | AK184: 200
I185: 1 | J185: 1 | K185: 1 | L185: 6 | M185: 1 | N185: 4 | O185: 2000 | P185: 2100 | R185: 1 | S185: 1 | T185: 6 | U185: 1 | V185: 4 | W185: 1000 | X185: 1100 | Z185: 1 | AA185: 6 | AB185: 1 | AC185: 4 | AD185: 200 | AE185: 300 | AG185: 6 | AH185: 1 | AI185: 4 | AJ185: 100 | AK185: 200
I186: 1 | J186: 1 | K186: 1 | L186: 6 | M186: 1 | N186: 5 | O186: 2050 | P186: 2150 | R186: 1 | S186: 1 | T186: 6 | U186: 1 | V186: 5 | W186: 1050 | X186: 1150 | Z186: 1 | AA186: 6 | AB186: 1 | AC186: 5 | AD186: 250 | AE186: 350 | AG186: 6 | AH186: 1 | AI186: 5 | AJ186: 150 | AK186: 250
I187: 1 | J187: 1 | K187: 1 | L187: 6 | M187: 1 | N187: 6 | O187: 2000 | P187: 2100 | R187: 1 | S187: 1 | T187: 6 | U187: 1 | V187: 6 | W187: 1000 | X187: 1100 | Z187: 1 | AA187: 6 | AB187: 1 | AC187: 6 | AD187: 200 | AE187: 300 | AG187: 6 | AH187: 1 | AI187: 6 | AJ187: 100 | AK187: 200
I188: 1 | J188: 1 | K188: 1 | L188: 6 | M188: 2 | N188: 1 | O188: 2000 | P188: 2100 | R188: 1 | S188: 1 | T188: 6 | U188: 2 | V188: 1 | W188: 1000 | X188: 1100 | Z188: 1 | AA188: 6 | AB188: 2 | AC188: 1 | AD188: 200 | AE188: 300 | AG188: 6 | AH188: 2 | AI188: 1 | AJ188: 100 | AK188: 200
I189: 1 | J189: 1 | K189: 1 | L189: 6 | M189: 2 | N189: 2 | O189: 1000 | P189: 1100 | R189: 1 | S189: 1 | T189: 6 | U189: 2 | V189: 2 | W189: 200 | X189: 300 | Z189: 1 | AA189: 6 | AB189: 2 | AC189: 2 | AD189: 100 | AE189: 200 | AG189: 6 | AH189: 2 | AI189: 2 | AJ189: 0 | AK189: 0
I190: 1 | J190: 1 | K190: 1 | L190: 6 | M190: 2 | N190: 3 | O190: 1000 | P190: 1100 | R190: 1 | S190: 1 | T190: 6 | U190: 2 | V190: 3 | W190: 200 | X190: 300 | Z190: 1 | AA190: 6 | AB190: 2 | AC190: 3 | AD190: 100 | AE190: 200 | AG190: 6 | AH190: 2 | AI190: 3 | AJ190: 0 | AK190: 0
I191: 1 | J191: 1 | K191: 1 | L191: 6 | M191: 2 | N191: 4 | O191: 1000 | P191: 1100 | R191: 1 | S191: 1 | T191: 6 | U191: 2 | V191: 4 | W191: 200 | X191: 300 | Z191: 1 | AA191: 6 | AB191: 2 | AC191: 4 | AD191: 100 | AE191: 200 | AG191: 6 | AH191: 2 | AI191: 4 | AJ191: 0 | AK191: 0
I192: 1 | J192: 1 | K192: 1 | L192: 6 | M192: 2 | N192: 5 | O192: 1050 | P192: 1150 | R192: 1 | S192: 1 | T192: 6 | U192: 2 | V192: 5 | W192: 250 | X192: 350 | Z192: 1 | AA192: 6 | AB192: 2 | AC192: 5 | AD192: 150 | AE192: 250 | AG192: 6 | AH192: 2 | AI192: 5 | AJ192: 50 | AK192: 150
I193: 1 | J193: 1 | K193: 1 | L193: 6 | M193: 2 | N193: 6 | O193: 1000 | P193: 1100 | R193: 1 | S193: 1 | T193: 6 | U193: 2 | V193: 6 | W193: 200 | X193: 300 | Z193: 1 | AA193: 6 | AB193: 2 | AC193: 6 | AD193: 100 | AE193: 200 | AG193: 6 | AH193: 2 | AI193: 6 | AJ193: 0 | AK193: 0
I194: 1 | J194: 1 | K194: 1 | L194: 6 | M194: 3 | N194: 1 | O194: 2000 | P194: 2100 | R194: 1 | S194: 1 | T194: 6 | U194: 3 | V194: 1 | W194: =calculateScore(R194,S194,T194,U194,V194,0) -> 1000 | X194: 1100 | Z194: 1 | AA194: 6 | AB194: 3 | AC194: 1 | AD194: 200 | AE194: 300 | AG194: 6 | AH194: 3 | AI194: 1 | AJ194: 100 | AK194: 200
I195: 1 | J195: 1 | K195: 1 | L195: 6 | M195: 3 | N195: 2 | O195: =calculateScore(I195,J195,K195,L195,M195,N195) -> 1000 | P195: =IF(O195=0,IF($C$2= "Y",-500,0),$A$2+O195) -> 1100 | R195: 1 | S195: 1 | T195: 6 | U195: 3 | V195: 2 | W195: 200 | X195: =IF(W195=0,IF($C$2= "Y",-500,0), $A$2+W195) -> 300 | Z195: 1 | AA195: 6 | AB195: 3 | AC195: 2 | AD195: =calculateScore(Z195,AA195,AB195,AC195,0,0) -> 100 | AE195: =IF(AD195=0,IF($C$2= "Y",-500,0), $A$2+AD195) -> 200 | AG195: 6 | AH195: 3 | AI195: 2 | AJ195: =calculateScore(AG195,AH195,AI195,0,0,0) -> 0 | AK195: =IF(AJ195=0,IF($C$2= "Y",-500,0), $A$2+AJ195) -> 0
I196: 1 | J196: 1 | K196: 1 | L196: 6 | M196: 3 | N196: 3 | O196: 1000 | P196: 1100 | R196: 1 | S196: 1 | T196: 6 | U196: 3 | V196: 3 | W196: 200 | X196: 300 | Z196: 1 | AA196: 6 | AB196: 3 | AC196: 3 | AD196: 100 | AE196: 200 | AG196: 6 | AH196: 3 | AI196: 3 | AJ196: 0 | AK196: 0
I197: 1 | J197: 1 | K197: 1 | L197: 6 | M197: 3 | N197: 4 | O197: 1000 | P197: 1100 | R197: 1 | S197: 1 | T197: 6 | U197: 3 | V197: 4 | W197: 200 | X197: 300 | Z197: 1 | AA197: 6 | AB197: 3 | AC197: 4 | AD197: 100 | AE197: 200 | AG197: 6 | AH197: 3 | AI197: 4 | AJ197: 0 | AK197: 0
I198: 1 | J198: 1 | K198: 1 | L198: 6 | M198: 3 | N198: 5 | O198: 1050 | P198: 1150 | R198: 1 | S198: 1 | T198: 6 | U198: 3 | V198: 5 | W198: 250 | X198: 350 | Z198: 1 | AA198: 6 | AB198: 3 | AC198: 5 | AD198: 150 | AE198: 250 | AG198: 6 | AH198: 3 | AI198: 5 | AJ198: 50 | AK198: 150
I199: 1 | J199: 1 | K199: 1 | L199: 6 | M199: 3 | N199: 6 | O199: 1000 | P199: 1100 | R199: 1 | S199: 1 | T199: 6 | U199: 3 | V199: 6 | W199: 200 | X199: 300 | Z199: 1 | AA199: 6 | AB199: 3 | AC199: 6 | AD199: 100 | AE199: 200 | AG199: 6 | AH199: 3 | AI199: 6 | AJ199: 0 | AK199: 0
I200: 1 | J200: 1 | K200: 1 | L200: 6 | M200: 4 | N200: 1 | O200: 2000 | P200: 2100 | R200: 1 | S200: 1 | T200: 6 | U200: 4 | V200: 1 | W200: 1000 | X200: 1100 | Z200: 1 | AA200: 6 | AB200: 4 | AC200: 1 | AD200: 200 | AE200: 300 | AG200: 6 | AH200: 4 | AI200: 1 | AJ200: 100 | AK200: 200
... 2050 more rows

Sheet Notes
A1: It is better to pick up one dice than two and reroll more dice
A2: Always roll 6 dice as long as you are under 17000
A3: Roll 5 dice if under 2900 points
A4: Roll 4 dice if under 900
A5: roll 3 if you have 385 or less
A6: Don't roll 2 dice or less if you have more than 300 points
A8: Fun Spots
A9: AA55xx - Taking all is worth 300, taking one and rolling five is worth 310
A10: A222xx - Better to take 100 points and roll five dice
